Workbook

Sheet Feuil1
A1: SIMULATION D'INVESTISSEMENT MEUBLE CLES EN MAIN COLOC INVEST
B3: L'APPARTEMENT
B4: =IF(E7="Concept Impossible","Le concept nécessite au moins 2 chambres !!!","") ->  | G4: Estimation de l'évolution des loyers et des charges : | Q4: =VLOOKUP(U21,T6:Z20,7,FALSE)/1000 -> 124.3494424 | AL4: Amorti. | AM4: prêt
B5: Lieu de l'investissement | U5: budget | V5: ingenierie | W5: mobilier | X5: achat et trav | Y5: Notaire | Z5: Achat appt | AA5: Chambres | AC5: Loyer | AD5: m2 | AF5: Type | AG5: Assurance | AH5: Gestion | AI5: Copro | AJ5: Charges | AK5: taxe fonc | AL5: immo + mob | AM5: int. + ass | AN5: résultat
B6: Montant d'investissement souhaité * | T6: 1 | U6: 120000 | V6: =U6*10% -> 12000 | W6: =6200+(1400*AA6) -> 10400 | X6: =U6-V6-W6 -> 97600 | Y6: =Z6*9% -> 8058.715596 | Z6: =U6-V6-W6-Y6 -> 89541.2844 | AA6: =VLOOKUP(AE6,$AG$26:$AH$225,2,TRUE) -> 3 | AB6: =VLOOKUP(AD6,$AH$25:$AI$31,2,TRUE) -> 0 | AC6: =$AB$29*AD6 -> 763.0474671 | AD6: =Z6/$AC$29 -> 77.86198644 | AE6: =ROUND(AD6,1) -> 77.9 | AF6: =VLOOKUP(AD6,AG26:AI225,3,TRUE) -> T4 | AG6: 180 | AH6: =(AC6+(90*AA6))*(12-$U$47)*6%*1.2 -> 818.1735939 | AI6: =12*AD6 -> 934.3438373 | AJ6: =SUM(AG6:AI6) -> 1932.517431 | AK6: =(AD6*10)+500 -> 1278.619864 | AL6: =((U6-W6)*0.9*3.33%)+W6*10% -> 4324.712 | AM6: =-$AT$29 -> 289.3333333 | AN6: =(AC6*11)-AJ6-AK6-AM6-AL6 -> 568.3395091
B7: =IF(E7="Concept impossible","Augmentez le montant investi",CONCATENATE(E7," chambres")) -> 3 chambres | E7: =IF(VLOOKUP($AD$21,$AG$26:$AH$225,2,FALSE)=1,"Concept Impossible",VLOOKUP($AD$21,$AG$26:$AH$225,2,FALSE)) -> 3 | T7: 2 | U7: 130000 | V7: =U7*10% -> 13000 | W7: =5700+(1500*AA7) -> 10200 | X7: =U7-V7-W7 -> 106800 | Y7: =Z7*8.8% -> 8638.235294 | Z7: =U7-V7-W7-Y7 -> 98161.76471 | AA7: 3 | AB7: 0 | AC7: =$AB$29*AD7 -> 836.5089514 | AD7: =Z7/$AC$29 -> 85.35805627 | AE7: =ROUND(AD7,1) -> 85.4 | AF7: T5 | AG7: 180 | AH7: =(AC7+(90*AA7))*(12-$U$47)*6%*1.2 -> 876.3550895 | AI7: =12*AD7 -> 1024.296675 | AJ7: =SUM(AG7:AI7) -> 2080.651765 | AK7: =(AD7*10)+500 -> 1353.580563 | AL7: =((U7-W7)*0.9*3.33%)+W7*10% -> 4610.406 | AM7: =-$AT$29 -> 289.3333333 | AN7: =(AC7*11)-AJ7-AK7-AM7-AL7 -> 867.6268048
B8: Surface habitable | E8: =VLOOKUP($U$21,$T$6:$AG$20,11,FALSE) -> 108.1299499 | G8: =E11/U22 -> 0.08663290158 | T8: 3 | U8: 140000 | V8: 14000 | W8: =5700+(1500*AA8) -> 10200 | X8: 115800 | Y8: =Z8*8.4% -> 8973.431734 | Z8: 106826.5683 | AA8: 3 | AB8: 0 | AC8: 910.348147 | AD8: 92.89266806 | AE8: 92.9 | AF8: T5 | AG8: 180 | AH8: =(AC8+(90*AA8))*(12-$U$47)*6%*1.2 -> 934.8357324 | AI8: 1114.712017 | AJ8: 2229.547749 | AK8: =(AD8*10)+800 -> 1728.926681 | AL8: 4910.106 | AM8: 289.3333333 | AN8: 855.9158536
B9: * Prix total acte en main, mobilier et agencement compris. | T9: 4 | U9: 150000 | V9: 15000 | W9: 10200 | X9: 124800 | Y9: =Z9*8% -> 9244.444444 | Z9: 115555.5556 | AA9: 3 | AB9: 0 | AC9: =$AB$29*AD9 -> 984.7342995 | AD9: 100.4830918 | AE9: 100.5 | AF9: T5 | AG9: 200 | AH9: 993.7495652 | AI9: 1205.797101 | AJ9: 2399.546667 | AK9: =(AD9*10)+800 -> 1804.830918 | AL9: 5209.806 | AM9: 289.3333333 | AN9: 1128.560377
B10: Estimation de la vacance locative | T10: 5 | U10: 160000 | V10: 16000 | W10: 10200 | X10: 133800 | Y10: =Z10*7.6% -> 9450.557621 | Z10: 124349.4424 | AA10: 3 | AB10: 0 | AC10: =$AB$29*AD10 -> 1059.673509 | AD10: 108.1299499 | AE10: 108.1 | AF10: T5 | AG10: 200 | AH10: 1053.101419 | AI10: 1297.559399 | AJ10: 2550.660818 | AK10: 1881.299499 | AL10: 5509.506 | AM10: 289.3333333 | AN10: 1425.608949
B11: Montant de la location annuelle : | E11: =IF(E7="Concept impossible",0,E12*(12-$U$47)) -> 11656.4086 | T11: 6 | U11: 170000 | V11: 17000 | W11: 11700 | X11: 141300 | Y11: =Z11*7.3% -> 9613.140727 | Z11: 131686.8593 | AA11: 4 | AB11: 0 | AC11: =$AB$29*AD11 -> 1122.201062 | AD11: 114.5103124 | AE11: 114.5 | AF11: T5 | AG11: 200 | AH11: 1173.903241 | AI11: 1374.123749 | AJ11: 2748.02699 | AK11: 1945.103124 | AL11: 5914.251 | AM11: 289.3333333 | AN11: 1447.497231
B12: Estimation des loyers mensuels HC | E12: =IF(E7="Concept impossible",0,VLOOKUP($U$21,$T$6:$AG$20,10,FALSE)) -> 1059.673509 | G12: =E15/U22 -> 0.05369363227 | T12: 7 | U12: 180000 | V12: 18000 | W12: 11700 | X12: 150300 | Y12: =Z12*7.1% -> 9963.865546 | Z12: 140336.1345 | AA12: 4 | AB12: 0 | AC12: 1195.907928 | AD12: 122.0314213 | AE12: 122 | AF12: =VLOOKUP(AD12,AG33:AI231,3,TRUE) -> T6 | AG12: 220 | AH12: 1232.279079 | AI12: 1464.377055 | AJ12: 2916.656134 | AK12: 2020.314213 | AL12: 6213.951 | AM12: 289.3333333 | AN12: 1714.732532
B13: Frais divers annuels (gestion, syndic, assur.) | E13: =IF(E7="Concept impossible",0,VLOOKUP($U$21,$T$6:$AK$20,17,FALSE)) -> 2550.660818 | T13: 8 | U13: 190000 | V13: 19000 | W13: 11700 | X13: 159300 | Y13: =Z13*6.9% -> 10282.22638 | Z13: 149017.7736 | AA13: 4 | AB13: 0 | AC13: 1269.890593 | AD13: 129.5806727 | AE13: 129.6 | AF13: =VLOOKUP(AD13,AG33:AI232,3,TRUE) -> T6 | AG13: 220 | AH13: 1290.873349 | AI13: 1554.968073 | AJ13: 3065.841422 | AK13: 2095.806727 | AL13: 6513.651 | AM13: 289.3333333 | AN13: 2004.164036
B14: Taxe foncière + C.E.T. | E14: =IF(E7="Concept impossible",0,VLOOKUP($U$21,$T$6:$AK$20,18,FALSE)) -> 1881.299499 | T14: 9 | U14: 200000 | V14: 20000 | W14: 13200 | X14: 166800 | Y14: =Z14*6.7% -> 10473.85192 | Z14: 156326.1481 | AA14: 5 | AB14: 0 | AC14: 1332.170653 | AD14: 135.9357809 | AE14: 135.9 | AF14: T6 | AG14: 220 | AH14: 1411.479157 | AI14: 1631.229371 | AJ14: 3262.708529 | AK14: 2159.357809 | AL14: 6918.396 | AM14: 289.3333333 | AN14: 2024.081514
B15: Loyers nets annuels | E15: =E11-E13-E14 -> 7224.448282 | T15: 10 | U15: 210000 | V15: 21000 | W15: 13200 | X15: 175800 | Y15: =Z15*6.5% -> 10729.57746 | Z15: 165070.4225 | AA15: 5 | AB15: 0 | AC15: =$AB$29*AD15 -> 1406.687079 | AD15: 143.5394979 | AE15: 143.5 | AF15: T6 | AG15: 250 | AH15: 1470.496167 | AI15: 1722.473974 | AJ15: =SUM(AG15:AI15) -> 3442.970141 | AK15: 2235.394979 | AL15: 7218.096 | AM15: 289.3333333 | AN15: 2287.763416
T16: 11 | U16: 220000 | V16: 22000 | W16: 13200 | X16: 184800 | Y16: =Z16*6.3% -> 10863.85098 | Z16: 173936.149 | AA16: 5 | AB16: 0 | AC16: 1469.506412 | AD16: 151.2488252 | AE16: 151.2 | AF16: T7 | AG16: 250 | AH16: 1520.249078 | AI16: 1814.985903 | AJ16: 3585.234981 | AK16: 2312.488252 | AL16: 7517.796 | AM16: 289.3333333 | AN16: 2459.717968
B17: * Loyers annuels sur prix d'acquisition Hors frais d'acte | T17: 12 | U17: 230000 | V17: 23000 | W17: 14700 | X17: 192300 | Y17: =Z17*6.1% -> 11055.89067 | Z17: 181244.1093 | AA17: 6 | AB17: 0 | AC17: 1544.515019 | AD17: 157.6035733 | AE17: 157.6 | AF17: T7 | AG17: 250 | AH17: 1650.935895 | AI17: 1891.24288 | AJ17: 3792.178775 | AK17: 2376.035733 | AL17: 7922.541 | AM17: 289.3333333 | AN17: 2609.576364
T18: 13 | U18: 240000 | V18: 24000 | W18: 14700 | X18: 201300 | Y18: =Z18*5.9% -> 11215.01416 | Z18: 190084.9858 | AA18: 6 | AB18: 0 | AC18: 1619.854662 | AD18: 165.291292 | AE18: 165.3 | AF18: T7 | AG18: 280 | AH18: 1710.604892 | AI18: 1983.495504 | AJ18: 3974.100397 | AK18: 2452.91292 | AL18: 8222.241 | AM18: 289.3333333 | AN18: 2879.813631
B19: LE FINANCEMENT | T19: 14 | U19: 250000 | V19: 25000 | W19: 14700 | X19: 210300 | Y19: =Z19*5.7% -> 11340.68117 | Z19: 198959.3188 | AA19: 6 | AB19: 0 | AC19: 1695.479413 | AD19: 173.0081033 | AE19: 173 | AF19: T7 | AG19: 280 | AH19: 1770.499695 | AI19: 2076.09724 | AJ19: 4126.596935 | AK19: 2530.081033 | AL19: 8521.941 | AM19: 289.3333333 | AN19: 3182.321237
B20: Apport personnel possible | E20: =AO54 -> 20000 | F20: =IF(AO53>V21,CONCATENATE("Maxi ",DOLLAR(V21,0)," !!!"),"") ->  | T20: 15 | U20: 260000 | V20: 26000 | W20: 14700 | X20: 219300 | Y20: =Z20*5.5% -> 11432.70142 | Z20: 207867.2986 | AA20: 6 | AB20: 0 | AC20: 1771.390892 | AD20: 180.7541727 | AE20: 180.8 | AF20: T7 | AG20: 280 | AH20: 1830.621587 | AI20: 2169.050072 | AJ20: 4279.671659 | AK20: 2607.541727 | AL20: 8821.641 | AM20: 289.3333333 | AN20: 3487.112096
B21: Durée du prêt : | D21: Montant : | E21: =V21-AO54 -> 140000 | U21: 5 | V21: =VLOOKUP($U$21,$T$6:$AD$20,2,FALSE) -> 160000 | W21: =VLOOKUP($U$21,$T$6:$AD$20,4,FALSE) -> 10200 | X21: =VLOOKUP($U$21,$T$6:$AD$20,5,FALSE) -> 133800 | AD21: =ROUND(VLOOKUP(U21,T6:AD20,11),0) -> 108 | AH21: =(AC21+(90*AA21))*(12-$U$47)*6%*1.196 -> 0 | AI21: =AD21*12*7*5% -> 453.6 | AK21: =AD21*10 -> 1080
B22: Taux hors assurance : | E22: =VLOOKUP(U36,T24:V35,3,FALSE) -> 0.0218 | U22: =VLOOKUP(U21,T6:Z20,7,FALSE)+VLOOKUP(U21,T6:Z20,4,FALSE) -> 134549.4424 | V22: cout hors notaire
B23: Mensualités du prêt | E23: =PMT(E22/12,V36*12,E21)*-1 -> 967.7093988
B24: Assurance DCI | E24: =W41 -> 35 | T24: 1 | U24: 10 | V24: 0.02 | AG24: Nbre de chambres | AL24: Evolution immo | AO24: Apport perso
B25: Mensualités assurance comprise | E25: =E23+E24 -> 1002.709399 | T25: 2 | U25: 11 | V25: 0.021 | Z25: Loyer | AA25: coef | AC25: Prix m2 | AG25: m2
T26: 3 | U26: 12 | V26: 0.0215 | X26: 1 | Y26: Saint Etienne | Z26: 7 | AA26: 1.4 | AB26: =Z26*AA26 -> 9.8 | AC26: 1150 | AG26: 1 | AH26: 0 | AI26: 0 | AK26: 1 | AL26: =YEAR(TODAY()) -> 2015 | AM26: =X21 -> 133800 | AN26: 1 | AO26: 0
B27: =CONCATENATE("LA TRESORERIE MOYENNE SUR ",V36," ANS") -> LA TRESORERIE MOYENNE SUR 14 ANS | T27: 4 | U27: 13 | V27: 0.0215 | X27: 2 | Y27: Villeurbanne | Z27: 11 | AA27: 1.4 | AB27: =Z27*AA27 -> 15.4 | AC27: 2300 | AG27: 2 | AH27: 0 | AI27: 0 | AK27: 2 | AL27: =AL26+1 -> 2016 | AM27: =AM26*(100%+$Y$50) -> 135138 | AN27: 2 | AO27: 5000
B28: Rembt de prêt, charges et taxes | E28: =VLOOKUP($V$36,Feuil3!$A$7:$K$36,11,FALSE) -> -232560.0563 | T28: 5 | U28: 14 | V28: 0.0218 | X28: 3 | Y28: Lyon | Z28: 12 | AA28: 1.4 | AB28: =Z28*AA28 -> 16.8 | AC28: 2800 | AD28: =(AC8/3)+90 -> 393.4493823 | AG28: 3 | AH28: 0 | AI28: 0 | AK28: 3 | AL28: =AL27+1 -> 2017 | AM28: 136489.38 | AN28: 3 | AO28: 10000 | AS28: assu | AT28: Cumul | AU28: Renseignez les zones jaunes
B29: Loyers bruts | E29: =VLOOKUP($V$36,Feuil3!A7:K36,9,FALSE) -> 168600.9328 | T29: 6 | U29: 15 | V29: 0.022 | X29: 1 | Z29: =VLOOKUP($X$29,$X$26:$AC$28,3,FALSE) -> 7 | AB29: =VLOOKUP($X$29,$X$26:$AC$28,5,FALSE) -> 9.8 | AC29: =VLOOKUP($X$29,$X$26:$AC$28,6,FALSE) -> 1150 | AD29: =AC29*AD21 -> 124200 | AG29: 4 | AH29: 0 | AI29: 0 | AK29: 4 | AL29: 2018 | AM29: 137854.2738 | AN29: 4 | AO29: 15000 | AQ29: 1 | AR29: =IPMT($E$22/12,AQ29,$V$36*12,$E$21) -> -254.3333333 | AS29: =-$E$24 -> -35 | AT29: =SUM(AR29:$AR$29)+SUM(AS29:$AS$29) -> -289.3333333 | AU29: Choisissez vos options dans
B30: =CONCATENATE("Estimation vacance locative : ", U47," mois/an") -> Estimation vacance locative : 1 mois/an | T30: 7 | U30: 16 | V30: 0.022 | AG30: 5 | AH30: 0 | AI30: 0 | AK30: 5 | AL30: 2019 | AM30: 139232.8165 | AN30: 5 | AO30: 20000 | AQ30: 2 | AR30: -253.0373668 | AS30: =-$E$24 -> -35 | AT30: =SUM(AR$29:$AR30)+SUM(AS$29:$AS30) -> -577.3707001
D31: Les loyers de vos locataires | E31: =E29-E30 -> 168600.9328 | T31: 8 | U31: 17 | V31: 0.0225 | AG31: 6 | AH31: 0 | AI31: 0 | AK31: 6 | AL31: 2020 | AM31: 140625.1447 | AN31: 6 | AO31: 25000 | AQ31: 3 | AR31: -251.739046 | AS31: -35 | AT31: =SUM(AR$29:$AR31)+SUM(AS$29:$AS31) -> -864.1097461
D32: =IF(E32>0,CONCATENATE("Vos revenus sur ",V36," ans"),CONCATENATE("Votre épargne sur ",V36," ans")) -> Votre épargne sur 14 ans | E32: =E28+E31 -> -63959.12353 | T32: 9 | U32: 18 | V32: 0.023 | X32: Evolution loyers et charges | AG32: 7 | AH32: 0 | AI32: 0 | AK32: 7 | AL32: 2021 | AM32: 142031.3962 | AN32: 7 | AO32: 30000 | AQ32: 4 | AR32: -250.4383665 | AS32: -35 | AT32: =SUM(AR$29:$AR32)+SUM(AS$29:$AS32) -> -1149.548113
D33: =IF(E20>0,"Votre apport personnel","") -> Votre apport personnel | E33: =IF(E20=0,"",E20) -> 20000 | G33: =CONCATENATE("Votre revenu mensuel complémentaire net au bout de ",V36," ans") -> Votre revenu mensuel complémentaire net au bout de 14 ans | J33: =VLOOKUP(($V$36+1),Feuil3!$A$7:$H$36,8,FALSE) -> 645.5773799 | L33: =CONCATENATE("Grâce aux amortissements, vos revenus de location meublée seront non imposés jusqu'en ",Feuil2!N38) -> Grâce aux amortissements, vos revenus de location meublée seront non imposés jusqu'en 2026 | T33: 10 | U33: 19 | V33: 0.024 | X33: 1 | Y33: 0.005 | AG33: 8 | AH33: 0 | AI33: 0 | AK33: 8 | AL33: 2022 | AM33: 143451.7101 | AN33: 8 | AO33: 40000 | AQ33: 5 | AR33: -249.1353241 | AS33: -35 | AT33: =SUM(AR$29:$AR33)+SUM(AS$29:$AS33) -> -1433.683437 | AX33: =927*240 -> 222480
B34: =IF(E34>0,"Revenu mensuel moyen","Epargne mensuelle moyenne") -> Epargne mensuelle moyenne | E34: =IF(E7="Concept impossible","!!!",E32/12/V36) -> -380.7090686 | T34: 11 | U34: 20 | V34: 0.025 | X34: 2 | Y34: 0.0075 | AG34: 9 | AH34: 0 | AI34: 0 | AK34: 9 | AL34: 2023 | AM34: 144886.2272 | AN34: 9 | AO34: 50000 | AQ34: 6 | AR34: -247.8299145 | AS34: -35 | AT34: =SUM(AR$29:$AR34)+SUM(AS$29:$AS34) -> -1716.513351
T35: 12 | U35: 25 | V35: 0.028 | X35: 3 | Y35: 0.01 | AG35: 10 | AH35: 0 | AI35: 0 | AK35: 10 | AL35: 2024 | AM35: 146335.0895 | AN35: 10 | AO35: 60000 | AQ35: 7 | AR35: -246.5221335 | AS35: -35 | AT35: =SUM(AR$29:$AR35)+SUM(AS$29:$AS35) -> -1998.035485
A36: Simulation et photo non contractuelles | U36: 5 | V36: =VLOOKUP(U36,$T$24:$U$35,2,FALSE) -> 14 | X36: 4 | Y36: 0.0125 | AG36: 11 | AH36: 0 | AI36: 0 | AK36: 11 | AL36: 2025 | AM36: 147798.4404 | AN36: 11 | AO36: 70000 | AQ36: 8 | AR36: -245.2119766 | AS36: -35 | AT36: =SUM(AR$29:$AR36)+SUM(AS$29:$AS36) -> -2278.247461
A37: Les prix correspondent à des valeurs moyennes constatées sur ces secteurs. Ils peuvent varier en fonction de l'environnement et de l'état des biens. | X37: 5 | Y37: 0.015 | AG37: 12 | AH37: 0 | AI37: 0 | AK37: 12 | AL37: 2026 | AM37: 149276.4248 | AN37: 12 | AO37: 80000 | AQ37: 9 | AR37: -243.8994396 | AS37: -35 | AT37: =SUM(AR$29:$AR37)+SUM(AS$29:$AS37) -> -2557.146901
X38: 6 | Y38: 0.0175 | AG38: 13 | AH38: 0 | AI38: 0 | AK38: 13 | AL38: 2027 | AM38: 150769.189 | AN38: 13 | AO38: 90000 | AQ38: 10 | AR38: -242.5845182 | AS38: -35 | AT38: =SUM(AR$29:$AR38)+SUM(AS$29:$AS38) -> -2834.731419
X39: 7 | Y39: 0.02 | AG39: 14 | AH39: 0 | AI39: 0 | AK39: 14 | AL39: 2028 | AM39: 152276.8809 | AN39: 14 | AO39: 100000 | AQ39: 11 | AR39: -241.267208 | AS39: -35 | AT39: =SUM(AR$29:$AR39)+SUM(AS$29:$AS39) -> -3110.998627
X40: 8 | Y40: 0.0225 | AG40: 15 | AH40: 1 | AI40: studio | AK40: 15 | AL40: 2029 | AM40: 153799.6497 | AN40: 15 | AO40: 110000 | AQ40: 12 | AR40: -239.9475047 | AS40: -35 | AT40: =SUM(AR$29:$AR40)+SUM(AS$29:$AS40) -> -3385.946132
U41: ass | V41: 0.3 | W41: =E21*V41%/12 -> 35 | X41: 1 | Z41: =VLOOKUP(X41,X33:Y40,2,FALSE) -> 0.005 | AG41: 16 | AH41: 1 | AI41: studio | AK41: 16 | AL41: 2030 | AM41: 155337.6462 | AN41: 16 | AO41: 120000 | AQ41: 13 | AR41: -238.6254039 | AS41: -35 | AT41: =SUM(AR$41:$AR41)+SUM(AS$41:$AS41) -> -273.6254039
U42: Vacance locative | X42: Evolution prix m2 | AG42: 17 | AH42: 1 | AI42: studio | AK42: 17 | AL42: 2031 | AM42: 156891.0227 | AN42: 17 | AO42: 130000 | AQ42: 14 | AR42: -237.3009013 | AS42: -35 | AT42: =SUM(AR$41:$AR42)+SUM(AS$41:$AS42) -> -545.9263052
T43: 1 | U43: 0 | X43: 1 | Y43: 0.005 | AG43: 18 | AH43: 1 | AI43: studio | AK43: 18 | AL43: 2032 | AM43: 158459.9329 | AN43: 18 | AO43: 140000 | AQ43: 15 | AR43: -235.9739926 | AS43: -35 | AT43: =SUM(AR$41:$AR43)+SUM(AS$41:$AS43) -> -816.9002978
T44: 2 | U44: 1 | X44: 2 | Y44: 0.0075 | AG44: 19 | AH44: 1 | AI44: studio | AK44: 19 | AL44: 2033 | AM44: 160044.5322 | AN44: 19 | AO44: 150000 | AQ44: 16 | AR44: -234.6446732 | AS44: -35 | AT44: =SUM(AR$41:$AR44)+SUM(AS$41:$AS44) -> -1086.544971
T45: 3 | U45: 1.5 | X45: 3 | Y45: 0.01 | AG45: 20 | AH45: 1 | AI45: studio | AK45: 20 | AL45: 2034 | AM45: 161644.9776 | AN45: 20 | AO45: 160000 | AQ45: 17 | AR45: -233.312939 | AS45: -35 | AT45: =SUM(AR$41:$AR45)+SUM(AS$41:$AS45) -> -1354.85791
T46: 4 | U46: 2 | X46: 4 | Y46: 0.0125 | AG46: 21 | AH46: 1 | AI46: studio | AK46: 21 | AL46: 2035 | AM46: 163261.4273 | AN46: 21 | AO46: 170000 | AQ46: 18 | AR46: -231.9787854 | AS46: -35 | AT46: =SUM(AR$41:$AR46)+SUM(AS$41:$AS46) -> -1621.836695
T47: 2 | U47: =VLOOKUP(T47,T43:U46,2,FALSE) -> 1 | X47: 5 | Y47: 0.015 | AG47: 22 | AH47: 1 | AI47: studio | AK47: 22 | AL47: 2036 | AM47: 164894.0416 | AN47: 22 | AO47: 180000 | AQ47: 19 | AR47: -230.6422081 | AS47: -35 | AT47: =SUM(AR$41:$AR47)+SUM(AS$41:$AS47) -> -1887.478904
X48: 6 | Y48: 0.0175 | AG48: 23 | AH48: 1 | AI48: studio | AK48: 23 | AL48: 2037 | AM48: 166542.982 | AN48: 23 | AO48: 190000 | AQ48: 20 | AR48: -229.3032027 | AS48: -35 | AT48: =SUM(AR$41:$AR48)+SUM(AS$41:$AS48) -> -2151.782106
X49: 7 | Y49: 0.02 | AG49: 24 | AH49: 1 | AI49: studio | AK49: 24 | AL49: 2038 | AM49: 168208.4119 | AN49: 24 | AO49: 200000 | AQ49: 21 | AR49: -227.9617648 | AS49: -35 | AT49: =SUM(AR$41:$AR49)+SUM(AS$41:$AS49) -> -2414.743871
X50: 3 | Y50: =VLOOKUP(X50,X43:Y49,2,FALSE) -> 0.01 | AG50: 25 | AH50: 1 | AI50: studio | AK50: 25 | AL50: 2039 | AM50: 169890.496 | AN50: 25 | AO50: 210000 | AQ50: 22 | AR50: -226.6178899 | AS50: -35 | AT50: =SUM(AR$41:$AR50)+SUM(AS$41:$AS50) -> -2676.361761
AG51: 26 | AH51: 1 | AI51: studio | AK51: 26 | AL51: 2040 | AM51: 171589.4009 | AN51: 26 | AO51: 220000 | AQ51: 23 | AR51: -225.2715737 | AS51: -35 | AT51: =SUM(AR$41:$AR51)+SUM(AS$41:$AS51) -> -2936.633335
AG52: 27 | AH52: 1 | AI52: studio | AK52: 27 | AL52: 2041 | AM52: 173305.2949 | AN52: 27 | AO52: 230000 | AQ52: 24 | AR52: -223.9228117 | AS52: -35 | AT52: =SUM(AR$41:$AR52)+SUM(AS$41:$AS52) -> -3195.556146
AG53: 28 | AH53: 1 | AI53: studio | AK53: 28 | AL53: 2042 | AM53: 175038.3479 | AN53: 5 | AO53: =VLOOKUP(AN53,AN26:AO52,2,FALSE) -> 20000 | AQ53: 25 | AR53: -222.5715994 | AS53: -35 | AT53: =SUM(AR$53:$AR53)+SUM(AS$53:$AS53) -> -257.5715994
AG54: 29 | AH54: 1 | AI54: studio | AK54: 29 | AL54: 2043 | AM54: 176788.7314 | AO54: =MIN(AO53,V21) -> 20000 | AQ54: 26 | AR54: -221.2179324 | AS54: -35 | AT54: =SUM(AR$53:$AR54)+SUM(AS$53:$AS54) -> -513.7895317
AG55: 30 | AH55: 1 | AI55: T1 | AK55: 30 | AL55: 2044 | AM55: 178556.6187 | AQ55: 27 | AR55: -219.8618062 | AS55: -35 | AT55: =SUM(AR$53:$AR55)+SUM(AS$53:$AS55) -> -768.6513379
AG56: 31 | AH56: 1 | AI56: T1 | AK56: 31 | AL56: 2045 | AM56: 180342.1849 | AQ56: 28 | AR56: -218.5032164 | AS56: -35 | AT56: =SUM(AR$53:$AR56)+SUM(AS$53:$AS56) -> -1022.154554
AG57: 32 | AH57: 1 | AI57: T1 | AQ57: 29 | AR57: -217.1421585 | AS57: -35 | AT57: =SUM(AR$53:$AR57)+SUM(AS$53:$AS57) -> -1274.296713
AG58: 33 | AH58: 1 | AI58: T1 | AQ58: 30 | AR58: -215.778628 | AS58: -35 | AT58: =SUM(AR$53:$AR58)+SUM(AS$53:$AS58) -> -1525.075341
AG59: 34 | AH59: 1 | AI59: T1 | AQ59: 31 | AR59: -214.4126204 | AS59: -35 | AT59: =SUM(AR$53:$AR59)+SUM(AS$53:$AS59) -> -1774.487961
AG60: 35 | AH60: 1 | AI60: T1 | AQ60: 32 | AR60: -213.0441313 | AS60: -35 | AT60: =SUM(AR$53:$AR60)+SUM(AS$53:$AS60) -> -2022.532093
AG61: 36 | AH61: 1 | AI61: T1 | AQ61: 33 | AR61: -211.6731561 | AS61: -35 | AT61: =SUM(AR$53:$AR61)+SUM(AS$53:$AS61) -> -2269.205249
AG62: 37 | AH62: 1 | AI62: T1 | AQ62: 34 | AR62: -210.2996902 | AS62: -35 | AT62: =SUM(AR$53:$AR62)+SUM(AS$53:$AS62) -> -2514.504939
AG63: 38 | AH63: 1 | AI63: T1 | AQ63: 35 | AR63: -208.9237292 | AS63: -35 | AT63: =SUM(AR$53:$AR63)+SUM(AS$53:$AS63) -> -2758.428668
AG64: 39 | AH64: 1 | AI64: T1 | AQ64: 36 | AR64: -207.5452686 | AS64: -35 | AT64: =SUM(AR$53:$AR64)+SUM(AS$53:$AS64) -> -3000.973937
AG65: 40 | AH65: 1 | AI65: T2 | AQ65: 37 | AR65: -206.1643038 | AS65: -35 | AT65: =SUM(AR$65:$AR65)+SUM(AS$65:$AS65) -> -241.1643038
AG66: 41 | AH66: 1 | AI66: T2 | AQ66: 38 | AR66: -204.7808302 | AS66: -35 | AT66: =SUM(AR$65:$AR66)+SUM(AS$65:$AS66) -> -480.945134
AG67: 42 | AH67: 1 | AI67: T2 | AQ67: 39 | AR67: -203.3948433 | AS67: -35 | AT67: =SUM(AR$65:$AR67)+SUM(AS$65:$AS67) -> -719.3399773
AG68: 43 | AH68: 1 | AI68: T2 | AQ68: 40 | AR68: -202.0063385 | AS68: -35 | AT68: =SUM(AR$65:$AR68)+SUM(AS$65:$AS68) -> -956.3463158
AG69: 44 | AH69: 1 | AI69: T2 | AQ69: 41 | AR69: -200.6153113 | AS69: -35 | AT69: =SUM(AR$65:$AR69)+SUM(AS$65:$AS69) -> -1191.961627
AG70: 45 | AH70: 2 | AI70: T2 | AQ70: 42 | AR70: -199.221757 | AS70: -35 | AT70: =SUM(AR$65:$AR70)+SUM(AS$65:$AS70) -> -1426.183384
AG71: 46 | AH71: 2 | AI71: T2 | AQ71: 43 | AR71: -197.8256711 | AS71: -35 | AT71: =SUM(AR$65:$AR71)+SUM(AS$65:$AS71) -> -1659.009055
AG72: 47 | AH72: 2 | AI72: T2 | AQ72: 44 | AR72: -196.427049 | AS72: -35 | AT72: =SUM(AR$65:$AR72)+SUM(AS$65:$AS72) -> -1890.436104
AG73: 48 | AH73: 2 | AI73: T2 | AQ73: 45 | AR73: -195.0258861 | AS73: -35 | AT73: =SUM(AR$65:$AR73)+SUM(AS$65:$AS73) -> -2120.46199
AG74: 49 | AH74: 2 | AI74: T2 | AQ74: 46 | AR74: -193.6221777 | AS74: -35 | AT74: =SUM(AR$65:$AR74)+SUM(AS$65:$AS74) -> -2349.084168
AG75: 50 | AH75: 2 | AI75: T2 | AQ75: 47 | AR75: -192.2159193 | AS75: -35 | AT75: =SUM(AR$65:$AR75)+SUM(AS$65:$AS75) -> -2576.300087
AG76: 51 | AH76: 2 | AI76: T2 | AQ76: 48 | AR76: -190.8071061 | AS76: -35 | AT76: =SUM(AR$65:$AR76)+SUM(AS$65:$AS76) -> -2802.107194
AG77: 52 | AH77: 2 | AI77: T2 | AQ77: 49 | AR77: -189.3957336 | AS77: -35 | AT77: =SUM(AR$77:$AR77)+SUM(AS$77:$AS77) -> -224.3957336
AG78: 53 | AH78: 2 | AI78: T2 | AQ78: 50 | AR78: -187.9817971 | AS78: -35 | AT78: =SUM(AR$77:$AR78)+SUM(AS$77:$AS78) -> -447.3775307
AG79: 54 | AH79: 2 | AI79: T2 | AQ79: 51 | AR79: -186.565292 | AS79: -35 | AT79: =SUM(AR$77:$AR79)+SUM(AS$77:$AS79) -> -668.9428227
AG80: 55 | AH80: 2 | AI80: T2 | AQ80: 52 | AR80: -185.1462135 | AS80: -35 | AT80: =SUM(AR$77:$AR80)+SUM(AS$77:$AS80) -> -889.0890363
AG81: 56 | AH81: 2 | AI81: T3 | AQ81: 53 | AR81: -183.7245571 | AS81: -35 | AT81: =SUM(AR$77:$AR81)+SUM(AS$77:$AS81) -> -1107.813593
AG82: 57 | AH82: 2 | AI82: T3 | AQ82: 54 | AR82: -182.3003179 | AS82: -35 | AT82: =SUM(AR$77:$AR82)+SUM(AS$77:$AS82) -> -1325.113911
AG83: 58 | AH83: 2 | AI83: T3 | AQ83: 55 | AR83: -180.8734914 | AS83: -35 | AT83: =SUM(AR$77:$AR83)+SUM(AS$77:$AS83) -> -1540.987403
AG84: 59 | AH84: 2 | AI84: T3 | AQ84: 56 | AR84: -179.4440729 | AS84: -35 | AT84: =SUM(AR$77:$AR84)+SUM(AS$77:$AS84) -> -1755.431476
AG85: 60 | AH85: 2 | AI85: T3 | AQ85: 57 | AR85: -178.0120575 | AS85: -35 | AT85: =SUM(AR$77:$AR85)+SUM(AS$77:$AS85) -> -1968.443533
AG86: 61 | AH86: 2 | AI86: T3 | AQ86: 58 | AR86: -176.5774407 | AS86: -35 | AT86: =SUM(AR$77:$AR86)+SUM(AS$77:$AS86) -> -2180.020974
AG87: 62 | AH87: 2 | AI87: T3 | AQ87: 59 | AR87: -175.1402176 | AS87: -35 | AT87: =SUM(AR$77:$AR87)+SUM(AS$77:$AS87) -> -2390.161191
AG88: 63 | AH88: 2 | AI88: T3 | AQ88: 60 | AR88: -173.7003836 | AS88: -35 | AT88: =SUM(AR$77:$AR88)+SUM(AS$77:$AS88) -> -2598.861575
AG89: 64 | AH89: 2 | AI89: T3 | AQ89: 61 | AR89: -172.2579339 | AS89: -35 | AT89: =SUM(AR$89:$AR89)+SUM(AS$89:$AS89) -> -207.2579339
AG90: 65 | AH90: 2 | AI90: T3 | AQ90: 62 | AR90: -170.8128638 | AS90: -35 | AT90: =SUM(AR$89:$AR90)+SUM(AS$89:$AS90) -> -413.0707977
AG91: 66 | AH91: 2 | AI91: T3 | AQ91: 63 | AR91: -169.3651684 | AS91: -35 | AT91: =SUM(AR$89:$AR91)+SUM(AS$89:$AS91) -> -617.4359661
AG92: 67 | AH92: 2 | AI92: T3 | AQ92: 64 | AR92: -167.914843 | AS92: -35 | AT92: =SUM(AR$89:$AR92)+SUM(AS$89:$AS92) -> -820.3508091
AG93: 68 | AH93: 2 | AI93: T3 | AQ93: 65 | AR93: =IPMT($E$22/12,AQ93,$V$36*12,$E$21) -> -166.4618829 | AS93: -35 | AT93: =SUM(AR$89:$AR93)+SUM(AS$89:$AS93) -> -1021.812692
AG94: 69 | AH94: 2 | AI94: T3 | AQ94: 66 | AR94: -165.0062833 | AS94: =-$E$24 -> -35 | AT94: =SUM(AR$89:$AR94)+SUM(AS$89:$AS94) -> -1221.818975
AG95: 70 | AH95: 2 | AI95: T4 | AQ95: 67 | AR95: -163.5480393 | AS95: -35 | AT95: =SUM(AR$89:$AR95)+SUM(AS$89:$AS95) -> -1420.367015
AG96: 71 | AH96: 2 | AI96: T4 | AQ96: 68 | AR96: -162.0871461 | AS96: -35 | AT96: =SUM(AR$89:$AR96)+SUM(AS$89:$AS96) -> -1617.454161
AG97: 72 | AH97: 2 | AI97: T4 | AQ97: 69 | AR97: -160.6235991 | AS97: -35 | AT97: =SUM(AR$89:$AR97)+SUM(AS$89:$AS97) -> -1813.07776
AG98: 73 | AH98: 2 | AI98: T4 | AQ98: 70 | AR98: -159.1573932 | AS98: -35 | AT98: =SUM(AR$89:$AR98)+SUM(AS$89:$AS98) -> -2007.235153
AG99: 74 | AH99: 2 | AI99: T4 | AQ99: 71 | AR99: -157.6885237 | AS99: -35 | AT99: =SUM(AR$89:$AR99)+SUM(AS$89:$AS99) -> -2199.923677
AG100: 75 | AH100: 2 | AI100: T4 | AQ100: 72 | AR100: -156.2169858 | AS100: -35 | AT100: =SUM(AR$89:$AR100)+SUM(AS$89:$AS100) -> -2391.140662
AG101: 76 | AH101: 3 | AI101: T4 | AQ101: 73 | AR101: -154.7427746 | AS101: -35 | AT101: =SUM(AR$101:$AR101)+SUM(AS$101:$AS101) -> -189.7427746
AG102: 77 | AH102: 3 | AI102: T4 | AQ102: 74 | AR102: -153.2658852 | AS102: -35 | AT102: =SUM(AR$101:$AR102)+SUM(AS$101:$AS102) -> -378.0086598
AG103: 78 | AH103: 3 | AI103: T4 | AQ103: 75 | AR103: -151.7863128 | AS103: -35 | AT103: =SUM(AR$101:$AR103)+SUM(AS$101:$AS103) -> -564.7949726
AG104: 79 | AH104: 3 | AI104: T4 | AQ104: 76 | AR104: -150.3040525 | AS104: -35 | AT104: =SUM(AR$101:$AR104)+SUM(AS$101:$AS104) -> -750.0990251
AG105: 80 | AH105: 3 | AI105: T4 | AQ105: 77 | AR105: -148.8190995 | AS105: -35 | AT105: =SUM(AR$101:$AR105)+SUM(AS$101:$AS105) -> -933.9181246
AG106: 81 | AH106: 3 | AI106: T4 | AQ106: 78 | AR106: -147.3314488 | AS106: -35 | AT106: =SUM(AR$101:$AR106)+SUM(AS$101:$AS106) -> -1116.249573
AG107: 82 | AH107: 3 | AI107: T4 | AQ107: 79 | AR107: -145.8410955 | AS107: -35 | AT107: =SUM(AR$101:$AR107)+SUM(AS$101:$AS107) -> -1297.090669
AG108: 83 | AH108: 3 | AI108: T4 | AQ108: 80 | AR108: -144.3480348 | AS108: -35 | AT108: =SUM(AR$101:$AR108)+SUM(AS$101:$AS108) -> -1476.438704
AG109: 84 | AH109: 3 | AI109: T4 | AQ109: 81 | AR109: -142.8522616 | AS109: -35 | AT109: =SUM(AR$101:$AR109)+SUM(AS$101:$AS109) -> -1654.290965
AG110: 85 | AH110: 3 | AI110: T5 | AQ110: 82 | AR110: -141.3537712 | AS110: -35 | AT110: =SUM(AR$101:$AR110)+SUM(AS$101:$AS110) -> -1830.644736
AG111: 86 | AH111: 3 | AI111: T5 | AQ111: 83 | AR111: -139.8525584 | AS111: -35 | AT111: =SUM(AR$101:$AR111)+SUM(AS$101:$AS111) -> -2005.497295
AG112: 87 | AH112: 3 | AI112: T5 | AQ112: 84 | AR112: -138.3486185 | AS112: -35 | AT112: =SUM(AR$101:$AR112)+SUM(AS$101:$AS112) -> -2178.845913
AG113: 88 | AH113: 3 | AI113: T5 | AQ113: 85 | AR113: -136.8419464 | AS113: -35 | AT113: =SUM(AR$113:$AR113)+SUM(AS$113:$AS113) -> -171.8419464
AG114: 89 | AH114: 3 | AI114: T5 | AQ114: 86 | AR114: -135.3325372 | AS114: -35 | AT114: =SUM(AR$113:$AR114)+SUM(AS$113:$AS114) -> -342.1744836
AG115: 90 | AH115: 3 | AI115: T5 | AQ115: 87 | AR115: -133.8203859 | AS115: -35 | AT115: =SUM(AR$113:$AR115)+SUM(AS$113:$AS115) -> -510.9948695
AG116: 91 | AH116: 3 | AI116: T5 | AQ116: 88 | AR116: -132.3054875 | AS116: -35 | AT116: =SUM(AR$113:$AR116)+SUM(AS$113:$AS116) -> -678.3003571
AG117: 92 | AH117: 3 | AI117: T5 | AQ117: 89 | AR117: -130.7878371 | AS117: -35 | AT117: =SUM(AR$113:$AR117)+SUM(AS$113:$AS117) -> -844.0881942
AG118: 93 | AH118: 3 | AI118: T5 | AQ118: 90 | AR118: -129.2674296 | AS118: -35 | AT118: =SUM(AR$113:$AR118)+SUM(AS$113:$AS118) -> -1008.355624
AG119: 94 | AH119: 3 | AI119: T5 | AQ119: 91 | AR119: -127.74426 | AS119: -35 | AT119: =SUM(AR$113:$AR119)+SUM(AS$113:$AS119) -> -1171.099884
AG120: 95 | AH120: 3 | AI120: T5 | AQ120: 92 | AR120: -126.2183234 | AS120: -35 | AT120: =SUM(AR$113:$AR120)+SUM(AS$113:$AS120) -> -1332.318207
AG121: 96 | AH121: 3 | AI121: T5 | AQ121: 93 | AR121: -124.6896146 | AS121: -35 | AT121: =SUM(AR$113:$AR121)+SUM(AS$113:$AS121) -> -1492.007822
AG122: 97 | AH122: 3 | AI122: T5 | AQ122: 94 | AR122: -123.1581286 | AS122: -35 | AT122: =SUM(AR$113:$AR122)+SUM(AS$113:$AS122) -> -1650.16595
AG123: 98 | AH123: 3 | AI123: T5 | AQ123: 95 | AR123: -121.6238605 | AS123: -35 | AT123: =SUM(AR$113:$AR123)+SUM(AS$113:$AS123) -> -1806.789811
AG124: 99 | AH124: 3 | AI124: T5 | AQ124: 96 | AR124: -120.0868051 | AS124: -35 | AT124: =SUM(AR$113:$AR124)+SUM(AS$113:$AS124) -> -1961.876616
AG125: 100 | AH125: 3 | AI125: T5 | AQ125: 97 | AR125: -118.5469574 | AS125: -35 | AT125: =SUM(AR$125:$AR125)+SUM(AS$125:$AS125) -> -153.5469574
AG126: 101 | AH126: 3 | AI126: T5 | AQ126: 98 | AR126: -117.0043123 | AS126: -35 | AT126: =SUM(AR$125:$AR126)+SUM(AS$125:$AS126) -> -305.5512697
AG127: 102 | AH127: 3 | AI127: T5 | AQ127: 99 | AR127: -115.4588647 | AS127: -35 | AT127: =SUM(AR$125:$AR127)+SUM(AS$125:$AS127) -> -456.0101344
AG128: 103 | AH128: 3 | AI128: T5 | AQ128: 100 | AR128: -113.9106096 | AS128: -35 | AT128: =SUM(AR$125:$AR128)+SUM(AS$125:$AS128) -> -604.9207439
AG129: 104 | AH129: 3 | AI129: T5 | AQ129: 101 | AR129: -112.3595418 | AS129: -35 | AT129: =SUM(AR$125:$AR129)+SUM(AS$125:$AS129) -> -752.2802857
AG130: 105 | AH130: 3 | AI130: T5 | AQ130: 102 | AR130: -110.8056562 | AS130: -35 | AT130: =SUM(AR$125:$AR130)+SUM(AS$125:$AS130) -> -898.0859419
AG131: 106 | AH131: 3 | AI131: T5 | AQ131: 103 | AR131: -109.2489477 | AS131: -35 | AT131: =SUM(AR$125:$AR131)+SUM(AS$125:$AS131) -> -1042.33489
AG132: 107 | AH132: 3 | AI132: T5 | AQ132: 104 | AR132: -107.6894112 | AS132: -35 | AT132: =SUM(AR$125:$AR132)+SUM(AS$125:$AS132) -> -1185.024301
AG133: 108 | AH133: 3 | AI133: T5 | AQ133: 105 | AR133: -106.1270416 | AS133: -35 | AT133: =SUM(AR$125:$AR133)+SUM(AS$125:$AS133) -> -1326.151342
AG134: 109 | AH134: 3 | AI134: T5 | AQ134: 106 | AR134: -104.5618336 | AS134: -35 | AT134: =SUM(AR$125:$AR134)+SUM(AS$125:$AS134) -> -1465.713176
AG135: 110 | AH135: 3 | AI135: T5 | AQ135: 107 | AR135: -102.9937822 | AS135: -35 | AT135: =SUM(AR$125:$AR135)+SUM(AS$125:$AS135) -> -1603.706958
AG136: 111 | AH136: 4 | AI136: T5 | AQ136: 108 | AR136: -101.4228822 | AS136: -35 | AT136: =SUM(AR$125:$AR136)+SUM(AS$125:$AS136) -> -1740.129841
AG137: 112 | AH137: 4 | AI137: T5 | AQ137: 109 | AR137: -99.84912836 | AS137: -35 | AT137: =SUM(AR$137:$AR137)+SUM(AS$137:$AS137) -> -134.8491284
AG138: 113 | AH138: 4 | AI138: T5 | AQ138: 110 | AR138: -98.27251554 | AS138: -35 | AT138: =SUM(AR$137:$AR138)+SUM(AS$137:$AS138) -> -268.1216439
AG139: 114 | AH139: 4 | AI139: T5 | AQ139: 111 | AR139: -96.69303853 | AS139: -35 | AT139: =SUM(AR$137:$AR139)+SUM(AS$137:$AS139) -> -399.8146824
AG140: 115 | AH140: 4 | AI140: T5 | AQ140: 112 | AR140: -95.11069214 | AS140: -35 | AT140: =SUM(AR$137:$AR140)+SUM(AS$137:$AS140) -> -529.9253746
AG141: 116 | AH141: 4 | AI141: T5 | AQ141: 113 | AR141: -93.52547116 | AS141: -35 | AT141: =SUM(AR$137:$AR141)+SUM(AS$137:$AS141) -> -658.4508457
AG142: 117 | AH142: 4 | AI142: T5 | AQ142: 114 | AR142: -91.93737036 | AS142: -35 | AT142: =SUM(AR$137:$AR142)+SUM(AS$137:$AS142) -> -785.3882161
AG143: 118 | AH143: 4 | AI143: T5 | AQ143: 115 | AR143: -90.34638451 | AS143: -35 | AT143: =SUM(AR$137:$AR143)+SUM(AS$137:$AS143) -> -910.7346006
AG144: 119 | AH144: 4 | AI144: T5 | AQ144: 116 | AR144: -88.75250836 | AS144: -35 | AT144: =SUM(AR$137:$AR144)+SUM(AS$137:$AS144) -> -1034.487109
AG145: 120 | AH145: 4 | AI145: T6 | AQ145: 117 | AR145: -87.15573668 | AS145: -35 | AT145: =SUM(AR$137:$AR145)+SUM(AS$137:$AS145) -> -1156.642846
AG146: 121 | AH146: 4 | AI146: T6 | AQ146: 118 | AR146: -85.55606419 | AS146: -35 | AT146: =SUM(AR$137:$AR146)+SUM(AS$137:$AS146) -> -1277.19891
AG147: 122 | AH147: 4 | AI147: T6 | AQ147: 119 | AR147: -83.95348564 | AS147: -35 | AT147: =SUM(AR$137:$AR147)+SUM(AS$137:$AS147) -> -1396.152395
AG148: 123 | AH148: 4 | AI148: T6 | AQ148: 120 | AR148: -82.34799573 | AS148: -35 | AT148: =SUM(AR$137:$AR148)+SUM(AS$137:$AS148) -> -1513.500391
AG149: 124 | AH149: 4 | AI149: T6 | AQ149: 121 | AR149: -80.73958918 | AS149: -35 | AT149: =SUM(AR$149:$AR149)+SUM(AS$149:$AS149) -> -115.7395892
AG150: 125 | AH150: 4 | AI150: T6 | AQ150: 122 | AR150: -79.12826069 | AS150: -35 | AT150: =SUM(AR$149:$AR150)+SUM(AS$149:$AS150) -> -229.8678499
AG151: 126 | AH151: 4 | AI151: T6 | AQ151: 123 | AR151: -77.51400496 | AS151: -35 | AT151: =SUM(AR$149:$AR151)+SUM(AS$149:$AS151) -> -342.3818548
AG152: 127 | AH152: 4 | AI152: T6 | AQ152: 124 | AR152: -75.89681666 | AS152: -35 | AT152: =SUM(AR$149:$AR152)+SUM(AS$149:$AS152) -> -453.2786715
AG153: 128 | AH153: 4 | AI153: T6 | AQ153: 125 | AR153: -74.27669047 | AS153: -35 | AT153: =SUM(AR$149:$AR153)+SUM(AS$149:$AS153) -> -562.5553619
AG154: 129 | AH154: 4 | AI154: T6 | AQ154: 126 | AR154: -72.65362105 | AS154: -35 | AT154: =SUM(AR$149:$AR154)+SUM(AS$149:$AS154) -> -670.208983
AG155: 130 | AH155: 5 | AI155: T6 | AQ155: 127 | AR155: -71.02760305 | AS155: -35 | AT155: =SUM(AR$149:$AR155)+SUM(AS$149:$AS155) -> -776.236586
AG156: 131 | AH156: 5 | AI156: T6 | AQ156: 128 | AR156: -69.39863112 | AS156: -35 | AT156: =SUM(AR$149:$AR156)+SUM(AS$149:$AS156) -> -880.6352172
AG157: 132 | AH157: 5 | AI157: T6 | AQ157: 129 | AR157: =IPMT($E$22/12,AQ157,$V$36*12,$E$21) -> -67.76669989 | AS157: -35 | AT157: =SUM(AR$149:$AR157)+SUM(AS$149:$AS157) -> -983.4019171
AG158: 133 | AH158: 5 | AI158: T6 | AQ158: 130 | AR158: -66.13180399 | AS158: =-$E$24 -> -35 | AT158: =SUM(AR$149:$AR158)+SUM(AS$149:$AS158) -> -1084.533721
AG159: 134 | AH159: 5 | AI159: T6 | AQ159: 131 | AR159: -64.49393803 | AS159: -35 | AT159: =SUM(AR$149:$AR159)+SUM(AS$149:$AS159) -> -1184.027659
AG160: 135 | AH160: 5 | AI160: T6 | AQ160: 132 | AR160: -62.85309661 | AS160: -35 | AT160: =SUM(AR$149:$AR160)+SUM(AS$149:$AS160) -> -1281.880756
AG161: 136 | AH161: 5 | AI161: T6 | AQ161: 133 | AR161: -61.20927432 | AS161: -35 | AT161: =SUM(AR$161:$AR161)+SUM(AS$161:$AS161) -> -96.20927432
AG162: 137 | AH162: 5 | AI162: T6 | AQ162: 134 | AR162: -59.56246577 | AS162: -35 | AT162: =SUM(AR$161:$AR162)+SUM(AS$161:$AS162) -> -190.7717401
AG163: 138 | AH163: 5 | AI163: T6 | AQ163: 135 | AR163: -57.9126655 | AS163: -35 | AT163: =SUM(AR$161:$AR163)+SUM(AS$161:$AS163) -> -283.6844056
AG164: 139 | AH164: 5 | AI164: T6 | AQ164: 136 | AR164: -56.2598681 | AS164: -35 | AT164: =SUM(AR$161:$AR164)+SUM(AS$161:$AS164) -> -374.9442737
AG165: 140 | AH165: 5 | AI165: T6 | AQ165: 137 | AR165: -54.60406812 | AS165: -35 | AT165: =SUM(AR$161:$AR165)+SUM(AS$161:$AS165) -> -464.5483418
AG166: 141 | AH166: 5 | AI166: T6 | AQ166: 138 | AR166: -52.94526011 | AS166: -35 | AT166: =SUM(AR$161:$AR166)+SUM(AS$161:$AS166) -> -552.4936019
AG167: 142 | AH167: 5 | AI167: T6 | AQ167: 139 | AR167: -51.28343859 | AS167: -35 | AT167: =SUM(AR$161:$AR167)+SUM(AS$161:$AS167) -> -638.7770405
AG168: 143 | AH168: 5 | AI168: T6 | AQ168: 140 | AR168: -49.61859809 | AS168: -35 | AT168: =SUM(AR$161:$AR168)+SUM(AS$161:$AS168) -> -723.3956386
AG169: 144 | AH169: 5 | AI169: T6 | AQ169: 141 | AR169: -47.95073314 | AS169: -35 | AT169: =SUM(AR$161:$AR169)+SUM(AS$161:$AS169) -> -806.3463718
AG170: 145 | AH170: 5 | AI170: T6 | AQ170: 142 | AR170: -46.27983823 | AS170: -35 | AT170: =SUM(AR$161:$AR170)+SUM(AS$161:$AS170) -> -887.62621
AG171: 146 | AH171: 5 | AI171: T6 | AQ171: 143 | AR171: -44.60590786 | AS171: -35 | AT171: =SUM(AR$161:$AR171)+SUM(AS$161:$AS171) -> -967.2321178
AG172: 147 | AH172: 5 | AI172: T6 | AQ172: 144 | AR172: -42.92893652 | AS172: -35 | AT172: =SUM(AR$161:$AR172)+SUM(AS$161:$AS172) -> -1045.161054
AG173: 148 | AH173: 5 | AI173: T6 | AQ173: 145 | AR173: -41.24891868 | AS173: -35 | AT173: =SUM(AR$173:$AR173)+SUM(AS$173:$AS173) -> -76.24891868
AG174: 149 | AH174: 5 | AI174: T6 | AQ174: 146 | AR174: -39.56584881 | AS174: -35 | AT174: =SUM(AR$173:$AR174)+SUM(AS$173:$AS174) -> -150.8147675
AG175: 150 | AH175: 6 | AI175: T7 | AQ175: 147 | AR175: -37.87972136 | AS175: -35 | AT175: =SUM(AR$173:$AR175)+SUM(AS$173:$AS175) -> -223.6944888
AG176: 151 | AH176: 6 | AI176: T7 | AQ176: 148 | AR176: -36.19053078 | AS176: -35 | AT176: =SUM(AR$173:$AR176)+SUM(AS$173:$AS176) -> -294.8850196
AG177: 152 | AH177: 6 | AI177: T7 | AQ177: 149 | AR177: -34.4982715 | AS177: -35 | AT177: =SUM(AR$173:$AR177)+SUM(AS$173:$AS177) -> -364.3832911
AG178: 153 | AH178: 6 | AI178: T7 | AQ178: 150 | AR178: -32.80293795 | AS178: -35 | AT178: =SUM(AR$173:$AR178)+SUM(AS$173:$AS178) -> -432.1862291
AG179: 154 | AH179: 6 | AI179: T7 | AQ179: 151 | AR179: -31.10452455 | AS179: -35 | AT179: =SUM(AR$173:$AR179)+SUM(AS$173:$AS179) -> -498.2907536
AG180: 155 | AH180: 6 | AI180: T7 | AQ180: 152 | AR180: -29.4030257 | AS180: -35 | AT180: =SUM(AR$173:$AR180)+SUM(AS$173:$AS180) -> -562.6937793
AG181: 156 | AH181: 6 | AI181: T7 | AQ181: 153 | AR181: -27.69843578 | AS181: -35 | AT181: =SUM(AR$173:$AR181)+SUM(AS$173:$AS181) -> -625.3922151
AG182: 157 | AH182: 6 | AI182: T7 | AQ182: 154 | AR182: -25.9907492 | AS182: -35 | AT182: =SUM(AR$173:$AR182)+SUM(AS$173:$AS182) -> -686.3829643
AG183: 158 | AH183: 6 | AI183: T7 | AQ183: 155 | AR183: -24.27996032 | AS183: -35 | AT183: =SUM(AR$173:$AR183)+SUM(AS$173:$AS183) -> -745.6629246
AG184: 159 | AH184: 6 | AI184: T7 | AQ184: 156 | AR184: -22.56606351 | AS184: -35 | AT184: =SUM(AR$173:$AR184)+SUM(AS$173:$AS184) -> -803.2289881
AG185: 160 | AH185: 6 | AI185: T7 | AQ185: 157 | AR185: -20.84905312 | AS185: -35 | AT185: =SUM(AR$185:$AR185)+SUM(AS$185:$AS185) -> -55.84905312
AG186: 161 | AH186: 6 | AI186: T7 | AQ186: 158 | AR186: -19.12892349 | AS186: -35 | AT186: =SUM(AR$185:$AR186)+SUM(AS$185:$AS186) -> -109.9779766
AG187: 162 | AH187: 6 | AI187: T7 | AQ187: 159 | AR187: -17.40566896 | AS187: -35 | AT187: =SUM(AR$185:$AR187)+SUM(AS$185:$AS187) -> -162.3836456
AG188: 163 | AH188: 6 | AI188: T7 | AQ188: 160 | AR188: -15.67928385 | AS188: -35 | AT188: =SUM(AR$185:$AR188)+SUM(AS$185:$AS188) -> -213.0629294
AG189: 164 | AH189: 6 | AI189: T7 | AQ189: 161 | AR189: -13.94976247 | AS189: -35 | AT189: =SUM(AR$185:$AR189)+SUM(AS$185:$AS189) -> -262.0126919
AG190: 165 | AH190: 6 | AI190: T7 | AQ190: 162 | AR190: -12.21709913 | AS190: -35 | AT190: =SUM(AR$185:$AR190)+SUM(AS$185:$AS190) -> -309.229791
AG191: 166 | AH191: 6 | AI191: T7 | AQ191: 163 | AR191: -10.48128812 | AS191: -35 | AT191: =SUM(AR$185:$AR191)+SUM(AS$185:$AS191) -> -354.7110791
AG192: 167 | AH192: 6 | AI192: T7 | AQ192: 164 | AR192: -8.742323723 | AS192: -35 | AT192: =SUM(AR$185:$AR192)+SUM(AS$185:$AS192) -> -398.4534029
AG193: 168 | AH193: 6 | AI193: T7 | AQ193: 165 | AR193: -7.000200203 | AS193: -35 | AT193: =SUM(AR$185:$AR193)+SUM(AS$185:$AS193) -> -440.4536031
AG194: 169 | AH194: 6 | AI194: T7 | AQ194: 166 | AR194: -5.254911826 | AS194: -35 | AT194: =SUM(AR$185:$AR194)+SUM(AS$185:$AS194) -> -480.7085149
AG195: 170 | AH195: 6 | AI195: T7 | AQ195: 167 | AR195: -3.506452841 | AS195: -35 | AT195: =SUM(AR$185:$AR195)+SUM(AS$185:$AS195) -> -519.2149677
AG196: 171 | AH196: 6 | AI196: T7 | AQ196: 168 | AR196: -1.754817489 | AS196: -35 | AT196: =SUM(AR$185:$AR196)+SUM(AS$185:$AS196) -> -555.9697852
AG197: 172 | AH197: 6 | AI197: T7 | AQ197: 169 | AS197: -35 | AT197: =SUM(AR$197:$AR197)+SUM(AS$197:$AS197) -> 
AG198: 173 | AH198: 6 | AI198: T7 | AQ198: 170 | AS198: -35 | AT198: =SUM(AR$197:$AR198)+SUM(AS$197:$AS198) -> 
AG199: 174 | AH199: 6 | AI199: T7 | AQ199: 171 | AS199: -35 | AT199: =SUM(AR$197:$AR199)+SUM(AS$197:$AS199) -> 
AG200: 175 | AH200: 6 | AI200: T7 | AQ200: 172 | AS200: -35 | AT200: =SUM(AR$197:$AR200)+SUM(AS$197:$AS200) -> 
AG201: 176 | AH201: 6 | AI201: T7 | AQ201: 173 | AS201: -35 | AT201: =SUM(AR$197:$AR201)+SUM(AS$197:$AS201) -> 
... 127 more rows

Sheet Feuil2
B1: RESULTAT FISCAL
B4: Années | C4: Loyers | D4: Charges | E4: Taxe foncière CET | F4: Intérêts d'emprunt | G4: Résultat | H4: Amort. Annuel Mobilier et immobilier | I4: Stock Amort. Reportables | J4: Amort. utilisés | K4: Amort. Reportés | L4: Résultat fiscal
A7: 1 | B7: =YEAR(TODAY()) -> 2015 | C7: =Feuil1!E12*(12-Feuil1!$U$47) -> 11656.4086 | D7: =Feuil1!E13 -> 2550.660818 | E7: =Feuil1!E14 -> 1881.299499 | F7: =-IF(ISERROR(VLOOKUP(A7*12,Feuil1!$AQ$29:$AT$328,4,FALSE)),0,VLOOKUP(A7*12,Feuil1!$AQ$29:$AT$328,4,FALSE)) -> 3385.946132 | G7: =C7-D7-E7-F7 -> 3838.50215 | H7: =VLOOKUP(Feuil1!$U$21,Feuil1!$T$6:$AN$20,19,FALSE) -> 5509.506 | I7: =H7 -> 5509.506 | J7: =IF(G7>0,MIN(G7,I7),0) -> 3838.50215 | K7: =I7-J7 -> 1671.00385 | L7: =G7-J7 -> 0 | M7: =B7 -> 2015 | N7: =IF(L7=0,0,1) -> 0
A8: 2 | B8: =B7+1 -> 2016 | C8: =C7*(100%+Feuil1!$Z$41) -> 11714.69064 | D8: =D7*(100%+Feuil1!$Z$41) -> 2563.414122 | E8: =E7*(100%+Feuil1!$Z$41) -> 1890.705996 | F8: =-IF(ISERROR(VLOOKUP(A8*12,Feuil1!$AQ$29:$AT$328,4,FALSE)),0,VLOOKUP(A8*12,Feuil1!$AQ$29:$AT$328,4,FALSE)) -> 3195.556146 | G8: =C8-D8-E8-F8 -> 4065.014377 | H8: =VLOOKUP(Feuil1!$U$21,Feuil1!$T$6:$AN$20,19,FALSE) -> 5509.506 | I8: =H8+K7 -> 7180.50985 | J8: =IF(G8>0,MIN(G8,I8),0) -> 4065.014377 | K8: =I8-J8 -> 3115.495473 | L8: 0 | M8: =B8 -> 2016 | N8: =IF(L8=0,0,1) -> 0
A9: 3 | B9: =B8+1 -> 2017 | C9: =C8*(100%+Feuil1!$Z$41) -> 11773.26409 | D9: =D8*(100%+Feuil1!$Z$41) -> 2576.231193 | E9: =E8*(100%+Feuil1!$Z$41) -> 1900.159526 | F9: =-IF(ISERROR(VLOOKUP(A9*12,Feuil1!$AQ$29:$AT$328,4,FALSE)),0,VLOOKUP(A9*12,Feuil1!$AQ$29:$AT$328,4,FALSE)) -> 3000.973937 | G9: 4295.899439 | H9: =VLOOKUP(Feuil1!$U$21,Feuil1!$T$6:$AN$20,19,FALSE) -> 5509.506 | I9: =H9+K8 -> 8625.001473 | J9: =IF(G9>0,MIN(G9,I9),0) -> 4295.899439 | K9: =I9-J9 -> 4329.102034 | L9: 0 | M9: 2017 | N9: 0
A10: 4 | B10: 2018 | C10: =C9*(100%+Feuil1!$Z$41) -> 11832.13042 | D10: =D9*(100%+Feuil1!$Z$41) -> 2589.112349 | E10: =E9*(100%+Feuil1!$Z$41) -> 1909.660324 | F10: =-IF(ISERROR(VLOOKUP(A10*12,Feuil1!$AQ$29:$AT$328,4,FALSE)),0,VLOOKUP(A10*12,Feuil1!$AQ$29:$AT$328,4,FALSE)) -> 2802.107194 | G10: 4531.250549 | H10: =VLOOKUP(Feuil1!$U$21,Feuil1!$T$6:$AN$20,19,FALSE) -> 5509.506 | I10: 9838.608034 | J10: 4531.250549 | K10: 5307.357485 | L10: 0 | M10: 2018 | N10: 0
A11: 5 | B11: 2019 | C11: =C10*(100%+Feuil1!$Z$41) -> 11891.29107 | D11: =D10*(100%+Feuil1!$Z$41) -> 2602.05791 | E11: =E10*(100%+Feuil1!$Z$41) -> 1919.208626 | F11: =-IF(ISERROR(VLOOKUP(A11*12,Feuil1!$AQ$29:$AT$328,4,FALSE)),0,VLOOKUP(A11*12,Feuil1!$AQ$29:$AT$328,4,FALSE)) -> 2598.861575 | G11: 4771.162956 | H11: =VLOOKUP(Feuil1!$U$21,Feuil1!$T$6:$AN$20,19,FALSE) -> 5509.506 | I11: 10816.86348 | J11: 4771.162956 | K11: 6045.700528 | L11: 0 | M11: 2019 | N11: 0
A12: 6 | B12: 2020 | C12: =C11*(100%+Feuil1!$Z$41) -> 11950.74752 | D12: =D11*(100%+Feuil1!$Z$41) -> 2615.0682 | E12: =E11*(100%+Feuil1!$Z$41) -> 1928.804669 | F12: =-IF(ISERROR(VLOOKUP(A12*12,Feuil1!$AQ$29:$AT$328,4,FALSE)),0,VLOOKUP(A12*12,Feuil1!$AQ$29:$AT$328,4,FALSE)) -> 2391.140662 | G12: 5015.733992 | H12: =VLOOKUP(Feuil1!$U$21,Feuil1!$T$6:$AN$20,19,FALSE) -> 5509.506 | I12: 11555.20653 | J12: 5015.733992 | K12: 6539.472536 | L12: 0 | M12: 2020 | N12: 0
A13: 7 | B13: 2021 | C13: =C12*(100%+Feuil1!$Z$41) -> 12010.50126 | D13: =D12*(100%+Feuil1!$Z$41) -> 2628.143541 | E13: =E12*(100%+Feuil1!$Z$41) -> 1938.448692 | F13: =-IF(ISERROR(VLOOKUP(A13*12,Feuil1!$AQ$29:$AT$328,4,FALSE)),0,VLOOKUP(A13*12,Feuil1!$AQ$29:$AT$328,4,FALSE)) -> 2178.845913 | G13: 5265.063114 | H13: =VLOOKUP(Feuil1!$U$21,Feuil1!$T$6:$AN$20,19,FALSE) -> 5509.506 | I13: 12048.97854 | J13: 5265.063114 | K13: 6783.915422 | L13: 0 | M13: 2021 | N13: 0
A14: 8 | B14: 2022 | C14: =C13*(100%+Feuil1!$Z$41) -> 12070.55377 | D14: =D13*(100%+Feuil1!$Z$41) -> 2641.284259 | E14: =E13*(100%+Feuil1!$Z$41) -> 1948.140936 | F14: =-IF(ISERROR(VLOOKUP(A14*12,Feuil1!$AQ$29:$AT$328,4,FALSE)),0,VLOOKUP(A14*12,Feuil1!$AQ$29:$AT$328,4,FALSE)) -> 1961.876616 | G14: 5519.251957 | H14: =VLOOKUP(Feuil1!$U$21,Feuil1!$T$6:$AN$20,19,FALSE) -> 5509.506 | I14: 12293.42142 | J14: 5519.251957 | K14: 6774.169466 | L14: 0 | M14: 2022 | N14: 0
A15: 9 | B15: 2023 | C15: =C14*(100%+Feuil1!$Z$41) -> 12130.90654 | D15: =D14*(100%+Feuil1!$Z$41) -> 2654.49068 | E15: =E14*(100%+Feuil1!$Z$41) -> 1957.88164 | F15: =-IF(ISERROR(VLOOKUP(A15*12,Feuil1!$AQ$29:$AT$328,4,FALSE)),0,VLOOKUP(A15*12,Feuil1!$AQ$29:$AT$328,4,FALSE)) -> 1740.129841 | G15: 5778.404375 | H15: =VLOOKUP(Feuil1!$U$21,Feuil1!$T$6:$AN$20,19,FALSE) -> 5509.506 | I15: 12283.67547 | J15: 5778.404375 | K15: 6505.271091 | L15: 0 | M15: 2023 | N15: 0
A16: 10 | B16: 2024 | C16: =C15*(100%+Feuil1!$Z$41) -> 12191.56107 | D16: =D15*(100%+Feuil1!$Z$41) -> 2667.763133 | E16: =E15*(100%+Feuil1!$Z$41) -> 1967.671048 | F16: =-IF(ISERROR(VLOOKUP(A16*12,Feuil1!$AQ$29:$AT$328,4,FALSE)),0,VLOOKUP(A16*12,Feuil1!$AQ$29:$AT$328,4,FALSE)) -> 1513.500391 | G16: 6042.626495 | H16: =VLOOKUP(Feuil1!$U$21,Feuil1!$T$6:$AN$20,19,FALSE) -> 5509.506 | I16: 12014.77709 | J16: 6042.626495 | K16: 5972.150596 | L16: 0 | M16: 2024 | N16: 0
A17: 11 | B17: 2025 | C17: =C16*(100%+Feuil1!$Z$41) -> 12252.51887 | D17: =D16*(100%+Feuil1!$Z$41) -> 2681.101949 | E17: =E16*(100%+Feuil1!$Z$41) -> 1977.509404 | F17: =-IF(ISERROR(VLOOKUP(A17*12,Feuil1!$AQ$29:$AT$328,4,FALSE)),0,VLOOKUP(A17*12,Feuil1!$AQ$29:$AT$328,4,FALSE)) -> 1281.880756 | G17: 6312.026765 | H17: =H16-VLOOKUP(Feuil1!$U$21,Feuil1!$T$6:$W$20,4)/10 -> 4489.506 | I17: 10461.6566 | J17: 6312.026765 | K17: 4149.62983 | L17: 0 | M17: 2025 | N17: 0
A18: 12 | B18: 2026 | C18: =C17*(100%+Feuil1!$Z$41) -> 12313.78147 | D18: =D17*(100%+Feuil1!$Z$41) -> 2694.507459 | E18: =E17*(100%+Feuil1!$Z$41) -> 1987.396951 | F18: =-IF(ISERROR(VLOOKUP(A18*12,Feuil1!$AQ$29:$AT$328,4,FALSE)),0,VLOOKUP(A18*12,Feuil1!$AQ$29:$AT$328,4,FALSE)) -> 1045.161054 | G18: 6586.716004 | H18: =H17 -> 4489.506 | I18: 8639.13583 | J18: 6586.716004 | K18: 2052.419826 | L18: 0 | M18: 2026 | N18: 0
A19: 13 | B19: 2027 | C19: =C18*(100%+Feuil1!$Z$41) -> 12375.35038 | D19: =D18*(100%+Feuil1!$Z$41) -> 2707.979996 | E19: =E18*(100%+Feuil1!$Z$41) -> 1997.333936 | F19: =-IF(ISERROR(VLOOKUP(A19*12,Feuil1!$AQ$29:$AT$328,4,FALSE)),0,VLOOKUP(A19*12,Feuil1!$AQ$29:$AT$328,4,FALSE)) -> 803.2289881 | G19: 6866.807456 | H19: =H18 -> 4489.506 | I19: 6541.925826 | J19: 6541.925826 | K19: 0 | L19: 324.8816296 | M19: 2027 | N19: 1
A20: 14 | B20: 2028 | C20: =C19*(100%+Feuil1!$Z$41) -> 12437.22713 | D20: =D19*(100%+Feuil1!$Z$41) -> 2721.519896 | E20: =E19*(100%+Feuil1!$Z$41) -> 2007.320605 | F20: =-IF(ISERROR(VLOOKUP(A20*12,Feuil1!$AQ$29:$AT$328,4,FALSE)),0,VLOOKUP(A20*12,Feuil1!$AQ$29:$AT$328,4,FALSE)) -> 555.9697852 | G20: 7152.416841 | H20: 4489.506 | I20: 4489.506 | J20: 4489.506 | K20: 0 | L20: 2662.910841 | M20: 2028 | N20: 1
A21: 15 | B21: 2029 | C21: =C20*(100%+Feuil1!$Z$41) -> 12499.41326 | D21: =D20*(100%+Feuil1!$Z$41) -> 2735.127495 | E21: =E20*(100%+Feuil1!$Z$41) -> 2017.357208 | F21: =-IF(ISERROR(VLOOKUP(A21*12,Feuil1!$AQ$29:$AT$328,4,FALSE)),0,VLOOKUP(A21*12,Feuil1!$AQ$29:$AT$328,4,FALSE)) -> 0 | G21: 7746.928559 | H21: 4489.506 | I21: 4489.506 | J21: 4489.506 | K21: 0 | L21: 3257.422559 | M21: 2029 | N21: 1
A22: 16 | B22: 2030 | C22: =C21*(100%+Feuil1!$Z$41) -> 12561.91033 | D22: =D21*(100%+Feuil1!$Z$41) -> 2748.803133 | E22: =E21*(100%+Feuil1!$Z$41) -> 2027.443994 | F22: =-IF(ISERROR(VLOOKUP(A22*12,Feuil1!$AQ$29:$AT$328,4,FALSE)),0,VLOOKUP(A22*12,Feuil1!$AQ$29:$AT$328,4,FALSE)) -> 0 | G22: 7785.663202 | H22: 4489.506 | I22: 4489.506 | J22: 4489.506 | K22: 0 | L22: 3296.157202 | M22: 2030 | N22: 1
A23: 17 | B23: 2031 | C23: =C22*(100%+Feuil1!$Z$41) -> 12624.71988 | D23: =D22*(100%+Feuil1!$Z$41) -> 2762.547148 | E23: =E22*(100%+Feuil1!$Z$41) -> 2037.581214 | F23: =-IF(ISERROR(VLOOKUP(A23*12,Feuil1!$AQ$29:$AT$328,4,FALSE)),0,VLOOKUP(A23*12,Feuil1!$AQ$29:$AT$328,4,FALSE)) -> 0 | G23: 7824.591518 | H23: 4489.506 | I23: 4489.506 | J23: 4489.506 | K23: 0 | L23: 3335.085518 | M23: 2031 | N23: 1
A24: 18 | B24: 2032 | C24: =C23*(100%+Feuil1!$Z$41) -> 12687.84348 | D24: =D23*(100%+Feuil1!$Z$41) -> 2776.359884 | E24: =E23*(100%+Feuil1!$Z$41) -> 2047.76912 | F24: =-IF(ISERROR(VLOOKUP(A24*12,Feuil1!$AQ$29:$AT$328,4,FALSE)),0,VLOOKUP(A24*12,Feuil1!$AQ$29:$AT$328,4,FALSE)) -> 0 | G24: 7863.714476 | H24: 4489.506 | I24: 4489.506 | J24: 4489.506 | K24: 0 | L24: 3374.208476 | M24: 2032 | N24: 1
A25: 19 | B25: 2033 | C25: =C24*(100%+Feuil1!$Z$41) -> 12751.2827 | D25: =D24*(100%+Feuil1!$Z$41) -> 2790.241684 | E25: =E24*(100%+Feuil1!$Z$41) -> 2058.007966 | F25: =-IF(ISERROR(VLOOKUP(A25*12,Feuil1!$AQ$29:$AT$328,4,FALSE)),0,VLOOKUP(A25*12,Feuil1!$AQ$29:$AT$328,4,FALSE)) -> 0 | G25: 7903.033048 | H25: 4489.506 | I25: 4489.506 | J25: 4489.506 | K25: 0 | L25: 3413.527048 | M25: 2033 | N25: 1
A26: 20 | B26: 2034 | C26: =C25*(100%+Feuil1!$Z$41) -> 12815.03911 | D26: =D25*(100%+Feuil1!$Z$41) -> 2804.192892 | E26: =E25*(100%+Feuil1!$Z$41) -> 2068.298006 | F26: =-IF(ISERROR(VLOOKUP(A26*12,Feuil1!$AQ$29:$AT$328,4,FALSE)),0,VLOOKUP(A26*12,Feuil1!$AQ$29:$AT$328,4,FALSE)) -> 0 | G26: 7942.548213 | H26: 4489.506 | I26: 4489.506 | J26: 4489.506 | K26: 0 | L26: 3453.042213 | M26: 2034 | N26: 1
A27: 21 | B27: 2035 | C27: =C26*(100%+Feuil1!$Z$41) -> 12879.11431 | D27: =D26*(100%+Feuil1!$Z$41) -> 2818.213857 | E27: =E26*(100%+Feuil1!$Z$41) -> 2078.639496 | F27: =-IF(ISERROR(VLOOKUP(A27*12,Feuil1!$AQ$29:$AT$328,4,FALSE)),0,VLOOKUP(A27*12,Feuil1!$AQ$29:$AT$328,4,FALSE)) -> 0 | G27: 7982.260954 | H27: 4489.506 | I27: 4489.506 | J27: 4489.506 | K27: 0 | L27: 3492.754954 | M27: 2035 | N27: 1
A28: 22 | B28: 2036 | C28: =C27*(100%+Feuil1!$Z$41) -> 12943.50988 | D28: =D27*(100%+Feuil1!$Z$41) -> 2832.304926 | E28: =E27*(100%+Feuil1!$Z$41) -> 2089.032693 | F28: =-IF(ISERROR(VLOOKUP(A28*12,Feuil1!$AQ$29:$AT$328,4,FALSE)),0,VLOOKUP(A28*12,Feuil1!$AQ$29:$AT$328,4,FALSE)) -> 0 | G28: 8022.172259 | H28: 4489.506 | I28: 4489.506 | J28: 4489.506 | K28: 0 | L28: 3532.666259 | M28: 2036 | N28: 1 | O28: Renseignements
A29: 23 | B29: 2037 | C29: =C28*(100%+Feuil1!$Z$41) -> 13008.22743 | D29: =D28*(100%+Feuil1!$Z$41) -> 2846.46645 | E29: =E28*(100%+Feuil1!$Z$41) -> 2099.477857 | F29: =-IF(ISERROR(VLOOKUP(A29*12,Feuil1!$AQ$29:$AT$328,4,FALSE)),0,VLOOKUP(A29*12,Feuil1!$AQ$29:$AT$328,4,FALSE)) -> 0 | G29: 8062.28312 | H29: 4489.506 | I29: 4489.506 | J29: 4489.506 | K29: 0 | L29: 3572.77712 | M29: 2037 | N29: 1 | O29: 06 01 99 97 34
A30: 24 | B30: 2038 | C30: =C29*(100%+Feuil1!$Z$41) -> 13073.26856 | D30: =D29*(100%+Feuil1!$Z$41) -> 2860.698783 | E30: =E29*(100%+Feuil1!$Z$41) -> 2109.975246 | F30: =-IF(ISERROR(VLOOKUP(A30*12,Feuil1!$AQ$29:$AT$328,4,FALSE)),0,VLOOKUP(A30*12,Feuil1!$AQ$29:$AT$328,4,FALSE)) -> 0 | G30: 8102.594536 | H30: 4489.506 | I30: 4489.506 | J30: 4489.506 | K30: 0 | L30: 3613.088536 | M30: 2038 | N30: 1
A31: 25 | B31: 2039 | C31: =C30*(100%+Feuil1!$Z$41) -> 13138.63491 | D31: =D30*(100%+Feuil1!$Z$41) -> 2875.002277 | E31: =E30*(100%+Feuil1!$Z$41) -> 2120.525122 | F31: =-IF(ISERROR(VLOOKUP(A31*12,Feuil1!$AQ$29:$AT$328,4,FALSE)),0,VLOOKUP(A31*12,Feuil1!$AQ$29:$AT$328,4,FALSE)) -> 0 | G31: 8143.107509 | H31: 4489.506 | I31: 4489.506 | J31: 4489.506 | K31: 0 | L31: 3653.601509 | M31: 2039 | N31: 1
A32: 26 | B32: 2040 | C32: =C31*(100%+Feuil1!$Z$41) -> 13204.32808 | D32: =D31*(100%+Feuil1!$Z$41) -> 2889.377288 | E32: =E31*(100%+Feuil1!$Z$41) -> 2131.127748 | F32: =-IF(ISERROR(VLOOKUP(A32*12,Feuil1!$AQ$29:$AT$328,4,FALSE)),0,VLOOKUP(A32*12,Feuil1!$AQ$29:$AT$328,4,FALSE)) -> 0 | G32: 8183.823046 | H32: 4489.506 | I32: 4489.506 | J32: 4489.506 | K32: 0 | L32: 3694.317046 | M32: 2040 | N32: 1
A33: 27 | B33: 2041 | C33: =C32*(100%+Feuil1!$Z$41) -> 13270.34972 | D33: =D32*(100%+Feuil1!$Z$41) -> 2903.824174 | E33: =E32*(100%+Feuil1!$Z$41) -> 2141.783387 | F33: =-IF(ISERROR(VLOOKUP(A33*12,Feuil1!$AQ$29:$AT$328,4,FALSE)),0,VLOOKUP(A33*12,Feuil1!$AQ$29:$AT$328,4,FALSE)) -> 0 | G33: 8224.742161 | H33: 4489.506 | I33: 4489.506 | J33: 4489.506 | K33: 0 | L33: 3735.236161 | M33: 2041 | N33: 1
A34: 28 | B34: 2042 | C34: =C33*(100%+Feuil1!$Z$41) -> 13336.70147 | D34: =D33*(100%+Feuil1!$Z$41) -> 2918.343295 | E34: =E33*(100%+Feuil1!$Z$41) -> 2152.492303 | F34: =-IF(ISERROR(VLOOKUP(A34*12,Feuil1!$AQ$29:$AT$328,4,FALSE)),0,VLOOKUP(A34*12,Feuil1!$AQ$29:$AT$328,4,FALSE)) -> 0 | G34: 8265.865872 | H34: 4489.506 | I34: 4489.506 | J34: 4489.506 | K34: 0 | L34: 3776.359872 | M34: 2042 | N34: 1
A35: 29 | B35: 2043 | C35: =C34*(100%+Feuil1!$Z$41) -> 13403.38498 | D35: =D34*(100%+Feuil1!$Z$41) -> 2932.935012 | E35: =E34*(100%+Feuil1!$Z$41) -> 2163.254765 | F35: =-IF(ISERROR(VLOOKUP(A35*12,Feuil1!$AQ$29:$AT$328,4,FALSE)),0,VLOOKUP(A35*12,Feuil1!$AQ$29:$AT$328,4,FALSE)) -> 0 | G35: 8307.195202 | H35: 4489.506 | I35: 4489.506 | J35: 4489.506 | K35: 0 | L35: 3817.689202 | M35: 2043 | N35: 1
A36: 30 | B36: 2044 | C36: =C35*(100%+Feuil1!$Z$41) -> 13470.4019 | D36: =D35*(100%+Feuil1!$Z$41) -> 2947.599687 | E36: =E35*(100%+Feuil1!$Z$41) -> 2174.071039 | F36: =-IF(ISERROR(VLOOKUP(A36*12,Feuil1!$AQ$29:$AT$328,4,FALSE)),0,VLOOKUP(A36*12,Feuil1!$AQ$29:$AT$328,4,FALSE)) -> 0 | G36: 8348.731178 | H36: 4489.506 | I36: 4489.506 | J36: 4489.506 | K36: 0 | L36: 3859.225178 | M36: 2044 | N36: 1
N38: =B36-SUM(N7:N36) -> 2026

Sheet Feuil3
B1: TRESORERIE
B4: Années | C4: Loyers | D4: Charges | E4: Taxe foncière et CET | F4: Annuités emprunt | G4: Solde | H4: Epargne mensuelle | I4: Loyers cumulés | J4: Charges | K4: Cumul charges
H5: ou Revenu
H6: mensuels
A7: 1 | B7: =YEAR(TODAY()) -> 2015 | C7: =Feuil1!E12*(12-Feuil1!$U$47) -> 11656.4086 | D7: =-Feuil1!E13 -> -2550.660818 | E7: =-Feuil1!E14 -> -1881.299499 | F7: =-IF(Feuil3!A7<=Feuil1!$V$36,Feuil1!$E$25*12,0) -> -12032.51279 | G7: =C7+D7+E7+F7 -> -4808.064503 | H7: =G7/12 -> -400.6720419 | I7: =SUM($C$7:C7) -> 11656.4086 | J7: =D7+E7+F7 -> -16464.4731 | K7: =SUM($J$7:J7) -> -16464.4731
A8: 2 | B8: =B7+1 -> 2016 | C8: =C7*(100%+Feuil1!$Z$41) -> 11714.69064 | D8: =D7*(100%+Feuil1!$Z$41) -> -2563.414122 | E8: =E7*(100%+Feuil1!$Z$41) -> -1890.705996 | F8: =-IF(Feuil3!A8<=Feuil1!$V$36,Feuil1!$E$25*12,0) -> -12032.51279 | G8: =C8+D8+E8+F8 -> -4771.942262 | H8: -397.6618551 | I8: =SUM($C$7:C8) -> 23371.09924 | J8: =D8+E8+F8 -> -16486.6329 | K8: =SUM($J$7:J8) -> -32951.10601
A9: 3 | B9: =B8+1 -> 2017 | C9: =C8*(100%+Feuil1!$Z$41) -> 11773.26409 | D9: =D8*(100%+Feuil1!$Z$41) -> -2576.231193 | E9: =E8*(100%+Feuil1!$Z$41) -> -1900.159526 | F9: =-IF(Feuil3!A9<=Feuil1!$V$36,Feuil1!$E$25*12,0) -> -12032.51279 | G9: -4735.639409 | H9: -394.6366174 | I9: =SUM($C$7:C9) -> 35144.36334 | J9: -16508.9035 | K9: =SUM($J$7:J9) -> -49460.00951
A10: 4 | B10: 2018 | C10: =C9*(100%+Feuil1!$Z$41) -> 11832.13042 | D10: =D9*(100%+Feuil1!$Z$41) -> -2589.112349 | E10: =E9*(100%+Feuil1!$Z$41) -> -1909.660324 | F10: =-IF(Feuil3!A10<=Feuil1!$V$36,Feuil1!$E$25*12,0) -> -12032.51279 | G10: -4699.155042 | H10: -391.5962535 | I10: =SUM($C$7:C10) -> 46976.49375 | J10: -16531.28546 | K10: =SUM($J$7:J10) -> -65991.29497
A11: 5 | B11: 2019 | C11: =C10*(100%+Feuil1!$Z$41) -> 11891.29107 | D11: =D10*(100%+Feuil1!$Z$41) -> -2602.05791 | E11: =E10*(100%+Feuil1!$Z$41) -> -1919.208626 | F11: =-IF(Feuil3!A11<=Feuil1!$V$36,Feuil1!$E$25*12,0) -> -12032.51279 | G11: -4662.488254 | H11: -388.5406878 | I11: =SUM($C$7:C11) -> 58867.78482 | J11: -16553.77932 | K11: =SUM($J$7:J11) -> -82545.07429
A12: 6 | B12: 2020 | C12: =C11*(100%+Feuil1!$Z$41) -> 11950.74752 | D12: =D11*(100%+Feuil1!$Z$41) -> -2615.0682 | E12: =E11*(100%+Feuil1!$Z$41) -> -1928.804669 | F12: =-IF(Feuil3!A12<=Feuil1!$V$36,Feuil1!$E$25*12,0) -> -12032.51279 | G12: -4625.638131 | H12: -385.4698442 | I12: =SUM($C$7:C12) -> 70818.53234 | J12: -16576.38565 | K12: =SUM($J$7:J12) -> -99121.45994
A13: 7 | B13: 2021 | C13: =C12*(100%+Feuil1!$Z$41) -> 12010.50126 | D13: =D12*(100%+Feuil1!$Z$41) -> -2628.143541 | E13: =E12*(100%+Feuil1!$Z$41) -> -1938.448692 | F13: =-IF(Feuil3!A13<=Feuil1!$V$36,Feuil1!$E$25*12,0) -> -12032.51279 | G13: -4588.603758 | H13: -382.3836465 | I13: =SUM($C$7:C13) -> 82829.0336 | J13: -16599.10502 | K13: =SUM($J$7:J13) -> -115720.565
A14: 8 | B14: 2022 | C14: =C13*(100%+Feuil1!$Z$41) -> 12070.55377 | D14: =D13*(100%+Feuil1!$Z$41) -> -2641.284259 | E14: =E13*(100%+Feuil1!$Z$41) -> -1948.140936 | F14: =-IF(Feuil3!A14<=Feuil1!$V$36,Feuil1!$E$25*12,0) -> -12032.51279 | G14: -4551.384212 | H14: -379.2820177 | I14: =SUM($C$7:C14) -> 94899.58737 | J14: -16621.93798 | K14: =SUM($J$7:J14) -> -132342.5029
A15: 9 | B15: 2023 | C15: =C14*(100%+Feuil1!$Z$41) -> 12130.90654 | D15: =D14*(100%+Feuil1!$Z$41) -> -2654.49068 | E15: =E14*(100%+Feuil1!$Z$41) -> -1957.88164 | F15: =-IF(Feuil3!A15<=Feuil1!$V$36,Feuil1!$E$25*12,0) -> -12032.51279 | G15: -4513.97857 | H15: -376.1648808 | I15: =SUM($C$7:C15) -> 107030.4939 | J15: -16644.88511 | K15: =SUM($J$7:J15) -> -148987.388
A16: 10 | B16: 2024 | C16: =C15*(100%+Feuil1!$Z$41) -> 12191.56107 | D16: =D15*(100%+Feuil1!$Z$41) -> -2667.763133 | E16: =E15*(100%+Feuil1!$Z$41) -> -1967.671048 | F16: =-IF(Feuil3!A16<=Feuil1!$V$36,Feuil1!$E$25*12,0) -> -12032.51279 | G16: -4476.385899 | H16: -373.0321582 | I16: =SUM($C$7:C16) -> 119222.055 | J16: -16667.94697 | K16: =SUM($J$7:J16) -> -165655.335
A17: 11 | B17: 2025 | C17: =C16*(100%+Feuil1!$Z$41) -> 12252.51887 | D17: =D16*(100%+Feuil1!$Z$41) -> -2681.101949 | E17: =E16*(100%+Feuil1!$Z$41) -> -1977.509404 | F17: =-IF(Feuil3!A17<=Feuil1!$V$36,Feuil1!$E$25*12,0) -> -12032.51279 | G17: -4438.605264 | H17: -369.883772 | I17: =SUM($C$7:C17) -> 131474.5738 | J17: -16691.12414 | K17: =SUM($J$7:J17) -> -182346.4591
A18: 12 | B18: 2026 | C18: =C17*(100%+Feuil1!$Z$41) -> 12313.78147 | D18: =D17*(100%+Feuil1!$Z$41) -> -2694.507459 | E18: =E17*(100%+Feuil1!$Z$41) -> -1987.396951 | F18: =-IF(Feuil3!A18<=Feuil1!$V$36,Feuil1!$E$25*12,0) -> -12032.51279 | G18: -4400.635726 | H18: -366.7196439 | I18: =SUM($C$7:C18) -> 143788.3553 | J18: -16714.41719 | K18: =SUM($J$7:J18) -> -199060.8763
A19: 13 | B19: 2027 | C19: =C18*(100%+Feuil1!$Z$41) -> 12375.35038 | D19: =D18*(100%+Feuil1!$Z$41) -> -2707.979996 | E19: =E18*(100%+Feuil1!$Z$41) -> -1997.333936 | F19: =-IF(Feuil3!A19<=Feuil1!$V$36,Feuil1!$E$25*12,0) -> -12032.51279 | G19: -4362.476341 | H19: -363.5396951 | I19: =SUM($C$7:C19) -> 156163.7057 | J19: -16737.82672 | K19: =SUM($J$7:J19) -> -215798.7031
A20: 14 | B20: 2028 | C20: =C19*(100%+Feuil1!$Z$41) -> 12437.22713 | D20: =D19*(100%+Feuil1!$Z$41) -> -2721.519896 | E20: =E19*(100%+Feuil1!$Z$41) -> -2007.320605 | F20: =-IF(Feuil3!A20<=Feuil1!$V$36,Feuil1!$E$25*12,0) -> -12032.51279 | G20: -4324.126159 | H20: -360.3438466 | I20: =SUM($C$7:C20) -> 168600.9328 | J20: -16761.35329 | K20: =SUM($J$7:J20) -> -232560.0563
A21: 15 | B21: 2029 | C21: =C20*(100%+Feuil1!$Z$41) -> 12499.41326 | D21: =D20*(100%+Feuil1!$Z$41) -> -2735.127495 | E21: =E20*(100%+Feuil1!$Z$41) -> -2017.357208 | F21: =-IF(Feuil3!A21<=Feuil1!$V$36,Feuil1!$E$25*12,0) -> 0 | G21: 7746.928559 | H21: 645.5773799 | I21: =SUM($C$7:C21) -> 181100.3461 | J21: -4752.484704 | K21: =SUM($J$7:J21) -> -237312.541
A22: 16 | B22: 2030 | C22: =C21*(100%+Feuil1!$Z$41) -> 12561.91033 | D22: =D21*(100%+Feuil1!$Z$41) -> -2748.803133 | E22: =E21*(100%+Feuil1!$Z$41) -> -2027.443994 | F22: =-IF(Feuil3!A22<=Feuil1!$V$36,Feuil1!$E$25*12,0) -> 0 | G22: 7785.663202 | H22: 648.8052668 | I22: =SUM($C$7:C22) -> 193662.2564 | J22: -4776.247127 | K22: =SUM($J$7:J22) -> -242088.7882
A23: 17 | B23: 2031 | C23: =C22*(100%+Feuil1!$Z$41) -> 12624.71988 | D23: =D22*(100%+Feuil1!$Z$41) -> -2762.547148 | E23: =E22*(100%+Feuil1!$Z$41) -> -2037.581214 | F23: =-IF(Feuil3!A23<=Feuil1!$V$36,Feuil1!$E$25*12,0) -> 0 | G23: 7824.591518 | H23: 652.0492932 | I23: =SUM($C$7:C23) -> 206286.9763 | J23: -4800.128363 | K23: =SUM($J$7:J23) -> -246888.9165
A24: 18 | B24: 2032 | C24: =C23*(100%+Feuil1!$Z$41) -> 12687.84348 | D24: =D23*(100%+Feuil1!$Z$41) -> -2776.359884 | E24: =E23*(100%+Feuil1!$Z$41) -> -2047.76912 | F24: =-IF(Feuil3!A24<=Feuil1!$V$36,Feuil1!$E$25*12,0) -> 0 | G24: 7863.714476 | H24: 655.3095396 | I24: =SUM($C$7:C24) -> 218974.8198 | J24: -4824.129005 | K24: =SUM($J$7:J24) -> -251713.0455
A25: 19 | B25: 2033 | C25: =C24*(100%+Feuil1!$Z$41) -> 12751.2827 | D25: =D24*(100%+Feuil1!$Z$41) -> -2790.241684 | E25: =E24*(100%+Feuil1!$Z$41) -> -2058.007966 | F25: =-IF(Feuil3!A25<=Feuil1!$V$36,Feuil1!$E$25*12,0) -> 0 | G25: 7903.033048 | H25: 658.5860873 | I25: =SUM($C$7:C25) -> 231726.1025 | J25: -4848.24965 | K25: =SUM($J$7:J25) -> -256561.2952
A26: 20 | B26: 2034 | C26: =C25*(100%+Feuil1!$Z$41) -> 12815.03911 | D26: =D25*(100%+Feuil1!$Z$41) -> -2804.192892 | E26: =E25*(100%+Feuil1!$Z$41) -> -2068.298006 | F26: =-IF(Feuil3!A26<=Feuil1!$V$36,Feuil1!$E$25*12,0) -> 0 | G26: 7942.548213 | H26: 661.8790178 | I26: =SUM($C$7:C26) -> 244541.1416 | J26: -4872.490898 | K26: =SUM($J$7:J26) -> -261433.7861
A27: 21 | B27: 2035 | C27: =C26*(100%+Feuil1!$Z$41) -> 12879.11431 | D27: =D26*(100%+Feuil1!$Z$41) -> -2818.213857 | E27: =E26*(100%+Feuil1!$Z$41) -> -2078.639496 | F27: =-IF(Feuil3!A27<=Feuil1!$V$36,Feuil1!$E$25*12,0) -> 0 | G27: 7982.260954 | H27: 665.1884129 | I27: =SUM($C$7:C27) -> 257420.2559 | J27: -4896.853352 | K27: =SUM($J$7:J27) -> -266330.6394
A28: 22 | B28: 2036 | C28: =C27*(100%+Feuil1!$Z$41) -> 12943.50988 | D28: =D27*(100%+Feuil1!$Z$41) -> -2832.304926 | E28: =E27*(100%+Feuil1!$Z$41) -> -2089.032693 | F28: =-IF(Feuil3!A28<=Feuil1!$V$36,Feuil1!$E$25*12,0) -> 0 | G28: 8022.172259 | H28: 668.5143549 | I28: =SUM($C$7:C28) -> 270363.7658 | J28: -4921.337619 | K28: =SUM($J$7:J28) -> -271251.9771 | L28: Renseignements
A29: 23 | B29: 2037 | C29: =C28*(100%+Feuil1!$Z$41) -> 13008.22743 | D29: =D28*(100%+Feuil1!$Z$41) -> -2846.46645 | E29: =E28*(100%+Feuil1!$Z$41) -> -2099.477857 | F29: =-IF(Feuil3!A29<=Feuil1!$V$36,Feuil1!$E$25*12,0) -> 0 | G29: 8062.28312 | H29: 671.8569267 | I29: =SUM($C$7:C29) -> 283371.9932 | J29: -4945.944307 | K29: =SUM($J$7:J29) -> -276197.9214 | L29: 06 01 99 97 34
A30: 24 | B30: 2038 | C30: =C29*(100%+Feuil1!$Z$41) -> 13073.26856 | D30: =D29*(100%+Feuil1!$Z$41) -> -2860.698783 | E30: =E29*(100%+Feuil1!$Z$41) -> -2109.975246 | F30: =-IF(Feuil3!A30<=Feuil1!$V$36,Feuil1!$E$25*12,0) -> 0 | G30: 8102.594536 | H30: 675.2162113 | I30: =SUM($C$7:C30) -> 296445.2618 | J30: -4970.674029 | K30: =SUM($J$7:J30) -> -281168.5954
A31: 25 | B31: 2039 | C31: =C30*(100%+Feuil1!$Z$41) -> 13138.63491 | D31: =D30*(100%+Feuil1!$Z$41) -> -2875.002277 | E31: =E30*(100%+Feuil1!$Z$41) -> -2120.525122 | F31: =-IF(Feuil3!A31<=Feuil1!$V$36,Feuil1!$E$25*12,0) -> 0 | G31: 8143.107509 | H31: 678.5922924 | I31: =SUM($C$7:C31) -> 309583.8967 | J31: -4995.527399 | K31: =SUM($J$7:J31) -> -286164.1228
A32: 26 | B32: 2040 | C32: =C31*(100%+Feuil1!$Z$41) -> 13204.32808 | D32: =D31*(100%+Feuil1!$Z$41) -> -2889.377288 | E32: =E31*(100%+Feuil1!$Z$41) -> -2131.127748 | F32: =-IF(Feuil3!A32<=Feuil1!$V$36,Feuil1!$E$25*12,0) -> 0 | G32: 8183.823046 | H32: 681.9852538 | I32: =SUM($C$7:C32) -> 322788.2247 | J32: -5020.505036 | K32: =SUM($J$7:J32) -> -291184.6278
A33: 27 | B33: 2041 | C33: =C32*(100%+Feuil1!$Z$41) -> 13270.34972 | D33: =D32*(100%+Feuil1!$Z$41) -> -2903.824174 | E33: =E32*(100%+Feuil1!$Z$41) -> -2141.783387 | F33: =-IF(Feuil3!A33<=Feuil1!$V$36,Feuil1!$E$25*12,0) -> 0 | G33: 8224.742161 | H33: 685.3951801 | I33: =SUM($C$7:C33) -> 336058.5745 | J33: -5045.607561 | K33: =SUM($J$7:J33) -> -296230.2354
A34: 28 | B34: 2042 | C34: =C33*(100%+Feuil1!$Z$41) -> 13336.70147 | D34: =D33*(100%+Feuil1!$Z$41) -> -2918.343295 | E34: =E33*(100%+Feuil1!$Z$41) -> -2152.492303 | F34: =-IF(Feuil3!A34<=Feuil1!$V$36,Feuil1!$E$25*12,0) -> 0 | G34: 8265.865872 | H34: 688.822156 | I34: =SUM($C$7:C34) -> 349395.2759 | J34: -5070.835599 | K34: =SUM($J$7:J34) -> -301301.071
A35: 29 | B35: 2043 | C35: =C34*(100%+Feuil1!$Z$41) -> 13403.38498 | D35: =D34*(100%+Feuil1!$Z$41) -> -2932.935012 | E35: =E34*(100%+Feuil1!$Z$41) -> -2163.254765 | F35: =-IF(Feuil3!A35<=Feuil1!$V$36,Feuil1!$E$25*12,0) -> 0 | G35: 8307.195202 | H35: 692.2662668 | I35: =SUM($C$7:C35) -> 362798.6609 | J35: -5096.189777 | K35: =SUM($J$7:J35) -> -306397.2608
A36: 30 | B36: 2044 | C36: =C35*(100%+Feuil1!$Z$41) -> 13470.4019 | D36: =D35*(100%+Feuil1!$Z$41) -> -2947.599687 | E36: =E35*(100%+Feuil1!$Z$41) -> -2174.071039 | F36: =-IF(Feuil3!A36<=Feuil1!$V$36,Feuil1!$E$25*12,0) -> 0 | G36: 8348.731178 | H36: 695.7275981 | I36: =SUM($C$7:C36) -> 376269.0628 | J36: -5121.670726 | K36: =SUM($J$7:J36) -> -311518.9315
